DepartmentFamily,Entity,Date,ExpenseType,ExpenseArea,Supplier,PaymentNumber,InvoiceDistributionAmount,InvoiceDescription,SupplierPostCode,ExpenditureType
FOOD STANDARDS AGENCY - Westminster,FOOD STANDARDS AGENCY - Westminster,2018-03-22,EXP - PURCHASE OF GOODS/SERVICES - OTHER - PROGRAMME EXPENDITURE,Chemical Risk Assessment Unit,PUBLIC HEALTH ENGLAND,2012700393,500000,FS231078: CO-FUNDING OF NATIONAL DIETARY AND NUTRITION SURVEY (NDNS)  2017-18 ,NW9 5EQ,Programme
FOOD STANDARDS AGENCY - Westminster,FOOD STANDARDS AGENCY - Westminster,2018-03-23,EXP - PURCHASE OF GOODS/SERVICES - OTHER FACILITIES COSTS,OWOW,DEFRA,2012700396,334465.93,ED029 FSA REFURBISHMENT OF FOSS HOUSE,YO1 2YX,Admin
FOOD STANDARDS AGENCY - Westminster,FOOD STANDARDS AGENCY - Westminster,2018-03-27,EXP - PURCHASE OF GOODS/SERVICES - OTHER - PROGRAMME EXPENDITURE,Contaminants Policy & Strategy Unit,I C CONSULTANTS LTD,1011705519,331519.2,Retention/Final Deliverable,SW7 2PG,Programme
FOOD STANDARDS AGENCY - Westminster,FOOD STANDARDS AGENCY - Westminster,2018-03-13,EXP - AMORTISATION - INTANGIBLE ASSETS,OWOW,FLEXIFORM BUSINESS FURNITURE LTD,1011705346,194989.48,Physical Spaces ?,EC1V 3RS,Capital
FOOD STANDARDS AGENCY - Westminster,FOOD STANDARDS AGENCY - Westminster,2018-03-28,Exp - Purchase Of Goods/Services - Consultancy,Regulating our Future,IBM UNITED KINGDOM LTD,1011705536,152875,"ROF _ Food business registration, segmentation and single view (Alpha Stage)",PO6 3AE,Admin
FOOD STANDARDS AGENCY - Westminster,FOOD STANDARDS AGENCY - Westminster,2018-03-27,EXP - PURCHASE OF GOODS/SERVICES - OTHER FACILITIES COSTS,Security & Estates,INTERSERVE FACILITIES MANAGEMENT LTD,1011705510,133929.17,AFCE0105 FSA Aviation House Exit Claim,B70 6RP,Admin
FOOD STANDARDS AGENCY - Westminster,FOOD STANDARDS AGENCY - Westminster,2018-03-21,EXP - PURCHASE OF GOODS/SERVICES - OTHER - PROGRAMME EXPENDITURE,Microbiological Food Safety Branch,"THE CHANCELLOR, MASTERS AND SCHOLARS OF THE UNIVERSITY OF OXFORD",1011705454,127405.87,D9 - Hold 6th Steering Group meeting (incorporating 9th Management Group meeting) to review the project to date.,OX1 2JD,Programme
FOOD STANDARDS AGENCY - Westminster,FOOD STANDARDS AGENCY - Westminster,2018-03-05,EXP - PURCHASE OF GOODS/SERVICES - SUPPORT - CIVIL SERVICE ADMIN,Finance Director & Branch,LONDON PENSIONS FUND AUTHORITY,1011705282,118815,Feb 18 - LPFA Deficit reduction payment,EC3N 4LP,Admin
FOOD STANDARDS AGENCY - Westminster,FOOD STANDARDS AGENCY - Westminster,2018-03-19,EXP - PURCHASE OF GOODS/SERVICES - SUPPORT - CIVIL SERVICE ADMIN,Finance Director & Branch,LONDON PENSIONS FUND AUTHORITY,1011705431,118815,Mar 18 - LPFA Deficit reduction payment,EC3N 4LP,Admin
FOOD STANDARDS AGENCY - Westminster,FOOD STANDARDS AGENCY - Westminster,2018-03-27,EXP - PURCHASE OF GOODS/SERVICES - OTHER FACILITIES COSTS,Security & Estates,INTERSERVE FACILITIES MANAGEMENT LTD,1011705510,97306.91,AFCE0116 - FSA Aviation House ,B70 6RP,Admin
FOOD STANDARDS AGENCY - Westminster,FOOD STANDARDS AGENCY - Westminster,2018-03-05,EXP - PURCHASE OF GOODS/SERVICES - OTHER - PROGRAMME EXPENDITURE,Scientific Methods & Laboratory Policy,PUBLIC HEALTH ENGLAND,2012700381,90000,FS101196 - Delivery 4 - 6 - MIC reports and Final Project Meeting. ,NW9 5EQ,Programme
FOOD STANDARDS AGENCY - Westminster,FOOD STANDARDS AGENCY - Westminster,2018-03-23,EXP - PURCHASE OF GOODS/SERVICES - OTHER - PROGRAMME EXPENDITURE,Food Production Branch,PUBLIC HEALTH ENGLAND,2012700394,85358.33,"FS102121-(Bulk order)Ongoing project in which chickens sold at retail are tested for Campylobacter levels. Work includes sampling, testing & analysis on samples collected on a nationwide basis.",NW9 5EQ,Programme
FOOD STANDARDS AGENCY - Westminster,FOOD STANDARDS AGENCY - Westminster,2018-03-23,EXP - PURCHASE OF GOODS/SERVICES - OTHER FACILITIES COSTS,OWOW,HARROW GREEN LTD,1011705471,77630.85,"Physical Spaces ? Move management, relocation and clearance costs",E16 2BZ,Admin
FOOD STANDARDS AGENCY - Westminster,FOOD STANDARDS AGENCY - Westminster,2018-03-26,EXP - AMORTISATION - INTANGIBLE ASSETS,IT Strategy,COMPUTACENTER UK LTD,1011705493,75440,Lenova T470 i5 laptops,AL10 9TW,Capital
FOOD STANDARDS AGENCY - Westminster,FOOD STANDARDS AGENCY - Westminster,2018-03-12,EXP - PURCHASE OF GOODS/SERVICES  - IT MANAGEMENT AND CHANGE - IT DEVELOPMENT,IT Strategy,EXPONENTIAL E LTD,1011705330,72705,"Remote Site Circuits (157 FTTC, 63 ADSL) Setup Charge",E1 8EU,Admin
FOOD STANDARDS AGENCY - Westminster,FOOD STANDARDS AGENCY - Westminster,2018-03-28,EXP - PURCHASE OF GOODS/SERVICES - OTHER - PROGRAMME EXPENDITURE,Contaminants HoD,C E F A S,2012700399,71413.35,FS102066 - Radiological analysis of food,NR33 0HT,Programme
FOOD STANDARDS AGENCY - Westminster,FOOD STANDARDS AGENCY - Westminster,2018-03-23,EXP - PURCHASE OF GOODS/SERVICES - OTHER - PROGRAMME EXPENDITURE,Food Production Branch,PUBLIC HEALTH ENGLAND,2012700394,57347.3,"FS102121-(Bulk order)Ongoing project in which chickens sold at retail are tested for Campylobacter levels. Work includes sampling, testing & analysis on samples collected on a nationwide basis.",NW9 5EQ,Programme
FOOD STANDARDS AGENCY - Westminster,FOOD STANDARDS AGENCY - Westminster,2018-03-27,EXP - PURCHASE OF GOODS/SERVICES - TELECOMS - TELEPHONE,IT Service Delivery,EXPONENTIAL E LTD,1011705513,53035.4,Initial Transfer and rental of 220 PSTN Lines,E1 8EU,Admin
FOOD STANDARDS AGENCY - Westminster,FOOD STANDARDS AGENCY - Westminster,2018-03-27,EXP - PURCHASE OF GOODS/SERVICES - OTHER - PROGRAMME EXPENDITURE,Scientific Methods & Laboratory Policy,LGC LTD,1011705527,40000,FS301017 - Validation of Multispectral imaging (MSI) technology for food and feed analysis. Start date: 01/November/2017 End date: 31/August/2018,TW11 0LY,Programme
FOOD STANDARDS AGENCY - Westminster,FOOD STANDARDS AGENCY - Westminster,2018-03-23,EXP - PURCHASE OF GOODS/SERVICES - OTHER - PROGRAMME EXPENDITURE,Contaminants HoD,C E F A S,2012700395,39293.75,Consumer Habits Research around Radiological Sites (FS131008),NR33 0HT,Programme
FOOD STANDARDS AGENCY - Westminster,FOOD STANDARDS AGENCY - Westminster,2018-03-29,EXP - PURCHASE OF GOODS/SERVICES - OTHER - PROGRAMME EXPENDITURE,Contaminants HoD,C E F A S,2012700400,39293.75,Consumer Habits Research around Radiological Sites (FS131008),NR33 0HT,Programme
FOOD STANDARDS AGENCY - Westminster,FOOD STANDARDS AGENCY - Westminster,2018-03-13,EXP - AMORTISATION - INTANGIBLE ASSETS,OWOW,FLEXIFORM BUSINESS FURNITURE LTD,1011705346,38997.9,Furniture Clive House,EC1V 3RS,Capital
FOOD STANDARDS AGENCY - Westminster,FOOD STANDARDS AGENCY - Westminster,2018-03-29,EXP - AMORTISATION - INTANGIBLE ASSETS,IT Strategy,COMPUTACENTER UK LTD,1011705548,37720,Lenova T470 i5 laptops,AL10 9TW,Capital
FOOD STANDARDS AGENCY - Westminster,FOOD STANDARDS AGENCY - Westminster,2018-03-14,Exp - Purchase Of Goods/Services - Consultancy,Regulating our Future,IBM UNITED KINGDOM LTD,1011705384,36050,ROF - Development of a Blueprint Vision Journey Map,PO6 3AE,Admin
FOOD STANDARDS AGENCY - Westminster,FOOD STANDARDS AGENCY - Westminster,2018-03-13,EXP - PURCHASE OF GOODS/SERVICES - OTHER - PROGRAMME EXPENDITURE,Comms Directors Office,COMMUNITY RESEARCH LTD,1011705348,31950,Community Research - FSA535 ? Creation and Management of FSA Panels ? 17th July 2017 to 16th January 2019,LE9 4WB,Programme
FOOD STANDARDS AGENCY - Westminster,FOOD STANDARDS AGENCY - Westminster,2018-03-26,EXP - PURCHASE OF GOODS/SERVICES - ACCOMMODATION & BLDNG MANAGEMENT,Security & Estates,INTERSERVE FM LTD,1011705495,31825.32,Core Fee Services - delivered up and including to 16/02/18 - AFCE0113,SE1 8RT,Admin
FOOD STANDARDS AGENCY - Westminster,FOOD STANDARDS AGENCY - Westminster,2018-03-23,EXP - PURCHASE OF GOODS/SERVICES - OTHER - PROGRAMME EXPENDITURE,Food Production Branch,PUBLIC HEALTH ENGLAND,2012700394,30693.99,"FS102121-(Bulk order)Ongoing project in which chickens sold at retail are tested for Campylobacter levels. Work includes sampling, testing & analysis on samples collected on a nationwide basis",NW9 5EQ,Programme
FOOD STANDARDS AGENCY - Westminster,FOOD STANDARDS AGENCY - Westminster,2018-03-23,EXP - PURCHASE OF GOODS/SERVICES - OTHER - PROGRAMME EXPENDITURE,Food Production Branch,PUBLIC HEALTH ENGLAND,2012700394,30693.99,"FS102121-(Bulk order)Ongoing project in which chickens sold at retail are tested for Campylobacter levels. Work includes sampling, testing & analysis on samples collected on a nationwide basis.",NW9 5EQ,Programme
FOOD STANDARDS AGENCY - Westminster,FOOD STANDARDS AGENCY - Westminster,2018-03-28,Exp - Purchase Of Goods/Services - Consultancy,Regulating our Future,IBM UNITED KINGDOM LTD,1011705536,30575,FOOD BUSINESS,PO6 3AE,Admin
FOOD STANDARDS AGENCY - Westminster,FOOD STANDARDS AGENCY - Westminster,2018-03-01,EXP - PURCHASE OF GOODS/SERVICES - OTHER FACILITIES COSTS,OWOW,DEFRA,2012700379,30563.29,2017-18 RECHARGE OF BCPS & LVWOS - BCP 8029,YO1 2YX,Admin
FOOD STANDARDS AGENCY - Westminster,FOOD STANDARDS AGENCY - Westminster,2018-03-23,EXP - PURCHASE OF GOODS/SERVICES - OTHER,Surveillance,ALPINE RESOURCING LTD,1011705478,29700,FS101079 Uplift to Supply of Managed Services - Surveillance Programme Support.,EC1A 7DH,Admin
FOOD STANDARDS AGENCY - Westminster,FOOD STANDARDS AGENCY - Westminster,2018-03-05,EXP - PURCHASE OF GOODS/SERVICES - OTHER - NEXT GENERATION - HR,Organisational Development,CABINET OFFICE,2012700382,29204.54,CIVIL SERVICE HR EXPERT SERVICES 2017/18,SW1A 2WH,Admin
FOOD STANDARDS AGENCY - Westminster,FOOD STANDARDS AGENCY - Westminster,2018-03-08,EXP - AMORTISATION - INTANGIBLE ASSETS,IT Strategy,COMPUTACENTER UK LTD,1011705308,28908.88,Additional Samsung J5 (2017),AL10 9TW,Capital
FOOD STANDARDS AGENCY - Westminster,FOOD STANDARDS AGENCY - Westminster,2018-03-12,EXP - AMORTISATION - INTANGIBLE ASSETS,IT Strategy,COMPUTACENTER UK LTD,1011705334,27407.12,Additional Samsung J5 (2017),AL10 9TW,Capital
FOOD STANDARDS AGENCY - Westminster,FOOD STANDARDS AGENCY - Westminster,2018-03-05,EXP - PURCHASE OF GOODS/SERVICES -OTHER PROF SERV - LEGAL DEBT RECOVERY COSTS,Finance Director & Branch,FLINT BISHOP LLP,1011705281,27299.9,Debt Recovery Services 2017-18,DE1 3HQ,Admin
FOOD STANDARDS AGENCY - Westminster,FOOD STANDARDS AGENCY - Westminster,2018-03-27,EXP - PURCHASE OF GOODS/SERVICES - OTHER FACILITIES COSTS,Security & Estates,INTERSERVE FACILITIES MANAGEMENT LTD,1011705510,26785.83,AVIATION HOUSE ,B70 6RP,Admin
FOOD STANDARDS AGENCY - Westminster,FOOD STANDARDS AGENCY - Westminster,2018-03-14,EXP - PURCHASE OF GOODS/SERVICES  - IT MANAGEMENT AND CHANGE - IT DEVELOPMENT,IT Strategy,COREAZURE LTD,1011705367,25000,WP6 - Clive House Migration,EC1A 4EN,Admin
FOOD STANDARDS AGENCY - Westminster,FOOD STANDARDS AGENCY - Westminster,2018-03-08,EXP - PURCHASE OF GOODS/SERV - SUPPORT - IT SUPPORT SERVICES,IT Service Delivery,LITTLE FISH UK LTD,1011705306,24264,Monthly Service Charge Sept 17 - Mar 18,NG1 1LS,Admin
FOOD STANDARDS AGENCY - Westminster,FOOD STANDARDS AGENCY - Westminster,2018-03-27,EXP - PURCHASE OF GOODS/SERVICES - OTHER - PROGRAMME EXPENDITURE,Digital,WUNDER LTD,1011705515,23890.73,Additional Funds Request to existing PO11770002696. Bulk order October 2017 to 31 March 2019. Amount requested ?23890.73 to a total of ?310000.73. FS401001 - The suppliers will help to develop a new website that meets our users? needs based,N1 9AB,Programme
FOOD STANDARDS AGENCY - Westminster,FOOD STANDARDS AGENCY - Westminster,2018-03-08,EXP - PURCHASE OF GOODS/SERV - SUPPORT - IT SUPPORT SERVICES,Finance Director & Branch,SHARED SERVICES CONNECTED LTD,1011705310,23331.22,SSCL Core Charge Mar 18,HP2 7AH,Admin
FOOD STANDARDS AGENCY - Westminster,FOOD STANDARDS AGENCY - Westminster,2018-03-02,EXP - PURCHASE OF GOODS/SERVICES - OTHER - PROGRAMME EXPENDITURE,Microbiological Food Safety Branch,THE CHARTERED INSTITUTE OF ENVIRONMENTAL HEALTH,1011705266,23254.4,FS101098- BULK ORDER Systematic review of the relative proportion of foodborne disease.,SE1 8DJ,Programme
FOOD STANDARDS AGENCY - Westminster,FOOD STANDARDS AGENCY - Westminster,2018-03-02,EXP - PURCHASE OF GOODS/SERVICES - OTHER - PROGRAMME EXPENDITURE,Regulatory Delivery ,C E F A S,2012700380,21076,Shellfish Classification,NR33 0HT,Programme
FOOD STANDARDS AGENCY - Westminster,FOOD STANDARDS AGENCY - Westminster,2018-03-14,EXP - PURCHASE OF GOODS/SERVICES - ACCOMMODATION & BLDNG MANAGEMENT,Security & Estates,INTERSERVE FM LTD,1011705372,20875.57,Bulk PO Interserve Provision of FM Service AVH Jan - Feb 2018 Facilities Management and Admin costs,SE1 8RT,Admin
FOOD STANDARDS AGENCY - Westminster,FOOD STANDARDS AGENCY - Westminster,2018-03-27,EXP - PURCHASE OF GOODS/SERVICES - OTHER FACILITIES COSTS,Security & Estates,INTERSERVE FACILITIES MANAGEMENT LTD,1011705510,19461.38,AVIATION HOUSE ,B70 6RP,Admin
FOOD STANDARDS AGENCY - Westminster,FOOD STANDARDS AGENCY - Westminster,2018-03-08,EXP - PURCHASE OF GOODS/SERV - SUPPORT - IT SUPPORT SERVICES,IT Service Delivery,LITTLE FISH UK LTD,1011705306,18759,Monthly Laptop Service Charge Sept 17 - Mar 18,NG1 1LS,Admin
FOOD STANDARDS AGENCY - Westminster,FOOD STANDARDS AGENCY - Westminster,2018-03-14,EXP - PURCHASE OF GOODS/SERVICES - ACCOMMODATION & BLDNG MANAGEMENT,Security & Estates,INTERSERVE FM LTD,1011705372,16351.99,Bulk PO Interserve Provision of FM Service AVH Jan - Feb 18 Security,SE1 8RT,Admin
FOOD STANDARDS AGENCY - Westminster,FOOD STANDARDS AGENCY - Westminster,2018-03-26,EXP - AMORTISATION - INTANGIBLE ASSETS,IT Strategy,COMPUTACENTER UK LTD,1011705493,16279.71,PO NO 11770003149,AL10 9TW,Capital
FOOD STANDARDS AGENCY - Westminster,FOOD STANDARDS AGENCY - Westminster,2018-03-13,EXP - PURCHASE OF GOODS/SERVICES - OTHER - PROGRAMME EXPENDITURE,Regulatory Delivery ,C E F A S,2012700387,14199.38,Shellfish Biotoxin Flesh analysis - DSP,NR33 0HT,Programme
FOOD STANDARDS AGENCY - Westminster,FOOD STANDARDS AGENCY - Westminster,2018-03-27,EXP - PURCHASE OF GOODS/SERVICES - OTHER - PROGRAMME EXPENDITURE,Digital,WUNDER LTD,1011705515,12672.24,FS401001 - The suppliers will help to develop a new website that meets our users? needs based on four key services. Beta part: October 2017 to March 2018,N1 9AB,Programme
FOOD STANDARDS AGENCY - Westminster,FOOD STANDARDS AGENCY - Westminster,2018-03-13,EXP - PURCHASE OF GOODS/SERVICES - OTHER - PROGRAMME EXPENDITURE,Regulatory Delivery ,C E F A S,2012700387,12540.2,Shellfish Biotoxin Flesh analysis - PSP,NR33 0HT,Programme
FOOD STANDARDS AGENCY - Westminster,FOOD STANDARDS AGENCY - Westminster,2018-03-12,EXP - PURCHASE OF GOODS/SERVICES  - IT MANAGEMENT AND CHANGE - IT DEVELOPMENT,IT Strategy,EXPONENTIAL E LTD,1011705330,12257,Main Office WAN Setup Charge,E1 8EU,Admin
FOOD STANDARDS AGENCY - Westminster,FOOD STANDARDS AGENCY - Westminster,2018-03-12,EXP - PURCHASE OF GOODS/SERVICES  - IT MANAGEMENT AND CHANGE - IT DEVELOPMENT,IT Strategy,EXPONENTIAL E LTD,1011705330,12000,Project Management of Transition (12 days),E1 8EU,Admin
FOOD STANDARDS AGENCY - Westminster,FOOD STANDARDS AGENCY - Westminster,2018-03-14,EXP - PURCHASE OF GOODS/SERVICES - ACCOMMODATION & BLDNG MANAGEMENT,Security & Estates,INTERSERVE FM LTD,1011705372,11560.1,Bulk PO Interserve Provision of FM Service AVH Jan - Feb 18 Cleaning,SE1 8RT,Admin
FOOD STANDARDS AGENCY - Westminster,FOOD STANDARDS AGENCY - Westminster,2018-03-13,EXP - PURCHASE OF GOODS/SERVICES - OTHER - PROGRAMME EXPENDITURE,Regulatory Delivery ,C E F A S,2012700387,11389.32,Phytoplankton analysis 2017/18,NR33 0HT,Programme
FOOD STANDARDS AGENCY - Westminster,FOOD STANDARDS AGENCY - Westminster,2018-03-14,EXP - PURCHASE OF GOODS/SERVICES - ACCOMMODATION & BLDNG MANAGEMENT,Security & Estates,INTERSERVE FM LTD,1011705372,10608.43,FIXED FEE WORKS,SE1 8RT,Admin
FOOD STANDARDS AGENCY - Westminster,FOOD STANDARDS AGENCY - Westminster,2018-03-27,EXP - PURCHASE OF GOODS/SERVICES - TELECOMS - TELEPHONE,IT Service Delivery,EXPONENTIAL E LTD,1011705513,10607.08,PSTN LINE TRANSFER,E1 8EU,Admin
FOOD STANDARDS AGENCY - Westminster,FOOD STANDARDS AGENCY - Westminster,2018-03-13,EXP - PURCHASE OF GOODS/SERVICES - OTHER - PROGRAMME EXPENDITURE,Regulatory Delivery ,C E F A S,2012700387,9778.42,Shellfish Biotoxin Flesh analysis - ASP,NR33 0HT,Programme
FOOD STANDARDS AGENCY - Westminster,FOOD STANDARDS AGENCY - Westminster,2018-03-12,EXP - PURCHASE OF GOODS/SERV - SUPPORT - IT SUPPORT SERVICES,IT Service Delivery,EXPONENTIAL E LTD,1011705330,8287,Year 1 - Operate Charge - London,E1 8EU,Admin
FOOD STANDARDS AGENCY - Westminster,FOOD STANDARDS AGENCY - Westminster,2018-03-12,EXP - PURCHASE OF GOODS/SERV - SUPPORT - IT SUPPORT SERVICES,IT Service Delivery,EXPONENTIAL E LTD,1011705330,8287,Year 1 - Operate Charge - York,E1 8EU,Admin
FOOD STANDARDS AGENCY - Westminster,FOOD STANDARDS AGENCY - Westminster,2018-03-29,EXP - AMORTISATION - INTANGIBLE ASSETS,IT Strategy,COMPUTACENTER UK LTD,1011705548,7544,Additional Laptops for New Starters,AL10 9TW,Capital
FOOD STANDARDS AGENCY - Westminster,FOOD STANDARDS AGENCY - Westminster,2018-03-12,EXP - PURCHASE OF GOODS/SERV - SUPPORT - IT SUPPORT SERVICES,IT Service Delivery,EXPONENTIAL E LTD,1011705330,5975,Year 1 - Operate Charge - Belfast,E1 8EU,Admin
FOOD STANDARDS AGENCY - Westminster,FOOD STANDARDS AGENCY - Westminster,2018-03-12,EXP - PURCHASE OF GOODS/SERV - SUPPORT - IT SUPPORT SERVICES,IT Service Delivery,EXPONENTIAL E LTD,1011705330,5975,Year 1 - Operate Charge - Cardiff,E1 8EU,Admin
FOOD STANDARDS AGENCY - Westminster,FOOD STANDARDS AGENCY - Westminster,2018-03-26,EXP - AMORTISATION - INTANGIBLE ASSETS,IT Strategy,COMPUTACENTER UK LTD,1011705493,5958.55, Ts70 i7 Laptops,AL10 9TW,Capital
FOOD STANDARDS AGENCY - Westminster,FOOD STANDARDS AGENCY - Westminster,2018-03-23,EXP - PURCHASE OF GOODS/SERVICES - OTHER,Surveillance,ALPINE RESOURCING LTD,1011705478,5940,FS101079 Uplift to Supply of Managed Services - Surveillance Programme Support.,EC1A 7DH,Admin
FOOD STANDARDS AGENCY - Westminster,FOOD STANDARDS AGENCY - Westminster,2018-03-16,EXP - SHORT-TERM CONTRACT & AGENCY STAFF,IT Service Delivery,CAPITA BUSINESS SERVICES LTD,1011705410,4629.61,Short Term Contract and Agency Staff,SL6 1DP,Admin
FOOD STANDARDS AGENCY - Westminster,FOOD STANDARDS AGENCY - Westminster,2018-03-14,EXP - PURCHASE OF GOODS/SERVICES - ACCOMMODATION & BLDNG MANAGEMENT,Security & Estates,INTERSERVE FM LTD,1011705372,4254.48,Bulk PO Interserve Provision of FM Service AVH Jan - Feb 2018 Maintenance and Repair,SE1 8RT,Admin
FOOD STANDARDS AGENCY - Westminster,FOOD STANDARDS AGENCY - Westminster,2018-03-29,EXP - PURCHASE OF GOODS/SERVICES - SUBSISTENCE,Chair & Deputy Chair,REDFERN TRAVEL LTD,1011705550,4058.33,Travel and Subsistence Week 11,BD1 5HQ,ADMIN
FOOD STANDARDS AGENCY - Westminster,FOOD STANDARDS AGENCY - Westminster,2018-03-08,EXP - PURCHASE OF GOODS/SERV - SUPPORT - IT SUPPORT SERVICES,IT Service Delivery,LITTLE FISH UK LTD,1011705306,3347,Monthly Citrix Service Charge Sept 17 - Mar 18,NG1 1LS,Admin
FOOD STANDARDS AGENCY - Westminster,FOOD STANDARDS AGENCY - Westminster,2018-03-15,EXP - PURCHASE OF GOODS/SERVICES - RAIL TRAVEL,Operations Assurance ,REDFERN TRAVEL LTD,1011705401,3307.05,Travel and Subsistence Week 9,BD1 5HQ,PROGRAMME
FOOD STANDARDS AGENCY - Westminster,FOOD STANDARDS AGENCY - Westminster,2018-03-29,EXP - PURCHASE OF GOODS/SERVICES - RAIL TRAVEL,Operational Delivery,REDFERN TRAVEL LTD,1011705550,3280.16,Travel and Subsistence Week 11,BD1 5HQ,PROGRAMME
FOOD STANDARDS AGENCY - Westminster,FOOD STANDARDS AGENCY - Westminster,2018-03-16,EXP - SHORT-TERM CONTRACT & AGENCY STAFF,IT Service Delivery,CAPITA BUSINESS SERVICES LTD,1011705410,3190.14,Short Term Contract and Agency Staff,SL6 1DP,Admin
FOOD STANDARDS AGENCY - Westminster,FOOD STANDARDS AGENCY - Westminster,2018-03-15,EXP - PURCHASE OF GOODS/SERVICES - RAIL TRAVEL,Operational Delivery,REDFERN TRAVEL LTD,1011705401,3139.45,Travel and Subsistence Week 9,BD1 5HQ,PROGRAMME
FOOD STANDARDS AGENCY - Westminster,FOOD STANDARDS AGENCY - Westminster,2018-03-13,EXP - PURCHASE OF GOODS/SERVICES - RAIL TRAVEL,Operations Assurance ,REDFERN TRAVEL LTD,1011705351,3099.97,Travel and Subsistence Week 8,BD1 5HQ,PROGRAMME
FOOD STANDARDS AGENCY - Westminster,FOOD STANDARDS AGENCY - Westminster,2018-03-13,EXP - PURCHASE OF GOODS/SERVICES - RAIL TRAVEL,Operational Delivery,REDFERN TRAVEL LTD,1011705351,2791.2,Travel and Subsistence Week 8,BD1 5HQ,PROGRAMME
FOOD STANDARDS AGENCY - Westminster,FOOD STANDARDS AGENCY - Westminster,2018-03-13,EXP - AMORTISATION - INTANGIBLE ASSETS,OWOW,FLEXIFORM BUSINESS FURNITURE LTD,1011705346,2604.52,Delivery of loan locker and uplift in Boss and electrics,EC1V 3RS,Capital
FOOD STANDARDS AGENCY - Westminster,FOOD STANDARDS AGENCY - Westminster,2018-03-29,EXP - PURCHASE OF GOODS/SERVICES - RAIL TRAVEL,Operations Assurance ,REDFERN TRAVEL LTD,1011705550,2578.95,Travel and Subsistence Week 11,BD1 5HQ,PROGRAMME
FOOD STANDARDS AGENCY - Westminster,FOOD STANDARDS AGENCY - Westminster,2018-03-16,EXP - SHORT-TERM CONTRACT & AGENCY STAFF,IT Service Delivery,CAPITA BUSINESS SERVICES LTD,1011705410,2552.11,Short Term Contract and Agency Staff,SL6 1DP,Admin
FOOD STANDARDS AGENCY - Westminster,FOOD STANDARDS AGENCY - Westminster,2018-03-29,EXP - PURCHASE OF GOODS/SERVICES -  FOREIGN AIR TRAVEL,Food Crime Unit - Admin,REDFERN TRAVEL LTD,1011705550,2520.74,Travel and Subsistence Week 11,BD1 5HQ,ADMIN
FOOD STANDARDS AGENCY - Westminster,FOOD STANDARDS AGENCY - Westminster,2018-03-20,EXP - PURCHASE OF GOODS/SERVICES - RAIL TRAVEL,Operations Assurance ,REDFERN TRAVEL LTD,1011705444,2482.9,Travel and Subsistence Week 10,BD1 5HQ,PROGRAMME
FOOD STANDARDS AGENCY - Westminster,FOOD STANDARDS AGENCY - Westminster,2018-03-20,EXP - PURCHASE OF GOODS/SERVICES - RAIL TRAVEL,Operational Delivery,REDFERN TRAVEL LTD,1011705444,2383.4,Travel and Subsistence Week 10,BD1 5HQ,PROGRAMME
FOOD STANDARDS AGENCY - Westminster,FOOD STANDARDS AGENCY - Westminster,2018-03-16,EXP - SHORT-TERM CONTRACT & AGENCY STAFF,Finance Director & Branch,CAPITA BUSINESS SERVICES LTD,1011705410,2254.14,Short Term Contract and Agency Staff,SL6 1DP,Admin
FOOD STANDARDS AGENCY - Westminster,FOOD STANDARDS AGENCY - Westminster,2018-03-16,EXP - SHORT-TERM CONTRACT & AGENCY STAFF,Finance Director & Branch,CAPITA BUSINESS SERVICES LTD,1011705410,2254.14,Short Term Contract and Agency Staff,SL6 1DP,Admin
FOOD STANDARDS AGENCY - Westminster,FOOD STANDARDS AGENCY - Westminster,2018-03-20,EXP - PURCHASE OF GOODS/SERVICES - RAIL TRAVEL,Finance Director & Branch,REDFERN TRAVEL LTD,1011705444,2102.9,Travel and Subsistence Week 10,BD1 5HQ,ADMIN
FOOD STANDARDS AGENCY - Westminster,FOOD STANDARDS AGENCY - Westminster,2018-03-15,EXP - PURCHASE OF GOODS/SERVICES - AIR TRAVEL,Chief Scientist,REDFERN TRAVEL LTD,1011705401,2099,Travel and Subsistence Week 9,BD1 5HQ,ADMIN
FOOD STANDARDS AGENCY - Westminster,FOOD STANDARDS AGENCY - Westminster,2018-03-29,EXP - PURCHASE OF GOODS/SERVICES -  FOREIGN AIR TRAVEL,Contaminants Policy & Strategy Unit,REDFERN TRAVEL LTD,1011705550,2023.47,Travel and Subsistence Week 11,BD1 5HQ,ADMIN
FOOD STANDARDS AGENCY - Westminster,FOOD STANDARDS AGENCY - Westminster,2018-03-13,EXP - PURCHASE OF GOODS/SERVICES -  FOREIGN AIR TRAVEL,Additives,REDFERN TRAVEL LTD,1011705351,2023.47,Travel and Subsistence Week 8,BD1 5HQ,ADMIN
FOOD STANDARDS AGENCY - Westminster,FOOD STANDARDS AGENCY - Westminster,2018-03-08,EXP - PURCHASE OF GOODS/SERV - SUPPORT - IT SUPPORT SERVICES,IT Service Delivery,LITTLE FISH UK LTD,1011705306,2004,Monthly Mobile Service Charge Sept 17 - Mar 18,NG1 1LS,Admin
FOOD STANDARDS AGENCY - Westminster,FOOD STANDARDS AGENCY - Westminster,2018-03-15,EXP - PURCHASE OF GOODS/SERVICES - RAIL TRAVEL,Regulatory Delivery ,REDFERN TRAVEL LTD,1011705401,1930.46,Travel and Subsistence Week 9,BD1 5HQ,ADMIN
FOOD STANDARDS AGENCY - Westminster,FOOD STANDARDS AGENCY - Westminster,2018-03-16,EXP - SHORT-TERM CONTRACT & AGENCY STAFF,Digital,CAPITA BUSINESS SERVICES LTD,1011705410,1891.94,Short Term Contract and Agency Staff,SL6 1DP,Admin
FOOD STANDARDS AGENCY - Westminster,FOOD STANDARDS AGENCY - Westminster,2018-03-15,EXP - PURCHASE OF GOODS/SERVICES - SUBSISTENCE,Operational Delivery,REDFERN TRAVEL LTD,1011705401,1867.63,Travel and Subsistence Week 9,BD1 5HQ,PROGRAMME
FOOD STANDARDS AGENCY - Westminster,FOOD STANDARDS AGENCY - Westminster,2018-03-29,EXP - PURCHASE OF GOODS/SERVICES - RAIL TRAVEL,Regulatory Delivery ,REDFERN TRAVEL LTD,1011705550,1862.55,Travel and Subsistence Week 11,BD1 5HQ,ADMIN
FOOD STANDARDS AGENCY - Westminster,FOOD STANDARDS AGENCY - Westminster,2018-03-13,EXP - PURCHASE OF GOODS/SERVICES - RAIL TRAVEL,Regulatory Delivery ,REDFERN TRAVEL LTD,1011705351,1829.6,Travel and Subsistence Week 8,BD1 5HQ,ADMIN
FOOD STANDARDS AGENCY - Westminster,FOOD STANDARDS AGENCY - Westminster,2018-03-16,EXP - SHORT-TERM CONTRACT & AGENCY STAFF,Comms Directors Office,CAPITA BUSINESS SERVICES LTD,1011705410,1826.46,Short Term Contract and Agency Staff,SL6 1DP,Admin
FOOD STANDARDS AGENCY - Westminster,FOOD STANDARDS AGENCY - Westminster,2018-03-16,EXP - SHORT-TERM CONTRACT & AGENCY STAFF,Finance Director & Branch,CAPITA BUSINESS SERVICES LTD,1011705410,1803.31,Short Term Contract and Agency Staff,SL6 1DP,Admin
FOOD STANDARDS AGENCY - Westminster,FOOD STANDARDS AGENCY - Westminster,2018-03-29,EXP - PURCHASE OF GOODS/SERVICES - RAIL TRAVEL,Finance Director & Branch,REDFERN TRAVEL LTD,1011705550,1695.2,Travel and Subsistence Week 11,BD1 5HQ,ADMIN
FOOD STANDARDS AGENCY - Westminster,FOOD STANDARDS AGENCY - Westminster,2018-03-16,EXP - SHORT-TERM CONTRACT & AGENCY STAFF,Digital,CAPITA BUSINESS SERVICES LTD,1011705410,1681.73,Short Term Contract and Agency Staff,SL6 1DP,Admin
FOOD STANDARDS AGENCY - Westminster,FOOD STANDARDS AGENCY - Westminster,2018-03-16,EXP - SHORT-TERM CONTRACT & AGENCY STAFF,Food Crime Unit - Prog,CAPITA BUSINESS SERVICES LTD,1011705410,1648.88,Short Term Contract and Agency Staff,SL6 1DP,Programme
FOOD STANDARDS AGENCY - Westminster,FOOD STANDARDS AGENCY - Westminster,2018-03-16,EXP - SHORT-TERM CONTRACT & AGENCY STAFF,Comms Directors Office,CAPITA BUSINESS SERVICES LTD,1011705410,1643.82,Short Term Contract and Agency Staff,SL6 1DP,Admin
FOOD STANDARDS AGENCY - Westminster,FOOD STANDARDS AGENCY - Westminster,2018-03-13,EXP - PURCHASE OF GOODS/SERVICES - RAIL TRAVEL,Legal Branch A & Investigations,REDFERN TRAVEL LTD,1011705351,1634.95,Travel and Subsistence Week 8,BD1 5HQ,ADMIN
FOOD STANDARDS AGENCY - Westminster,FOOD STANDARDS AGENCY - Westminster,2018-03-16,EXP - SHORT-TERM CONTRACT & AGENCY STAFF,Food Crime Unit - Prog,CAPITA BUSINESS SERVICES LTD,1011705410,1563.23,Short Term Contract and Agency Staff,SL6 1DP,Programme
FOOD STANDARDS AGENCY - Westminster,FOOD STANDARDS AGENCY - Westminster,2018-03-16,EXP - SHORT-TERM CONTRACT & AGENCY STAFF,Legal Branch A & Investigations,CAPITA BUSINESS SERVICES LTD,1011705410,1525.62,Short Term Contract and Agency Staff,SL6 1DP,Admin
FOOD STANDARDS AGENCY - Westminster,FOOD STANDARDS AGENCY - Westminster,2018-03-13,EXP - PURCHASE OF GOODS/SERVICES - RAIL TRAVEL,Organisational Development,REDFERN TRAVEL LTD,1011705351,1441.25,Travel and Subsistence Week 8,BD1 5HQ,ADMIN
FOOD STANDARDS AGENCY - Westminster,FOOD STANDARDS AGENCY - Westminster,2018-03-15,EXP - PURCHASE OF GOODS/SERVICES - RAIL TRAVEL,Regulating our Future,REDFERN TRAVEL LTD,1011705401,1412.2,Travel and Subsistence Week 9,BD1 5HQ,ADMIN
FOOD STANDARDS AGENCY - Westminster,FOOD STANDARDS AGENCY - Westminster,2018-03-29,EXP - PURCHASE OF GOODS/SERVICES - RAIL TRAVEL,Regulating our Future,REDFERN TRAVEL LTD,1011705550,1393.5,Travel and Subsistence Week 11,BD1 5HQ,ADMIN
FOOD STANDARDS AGENCY - Westminster,FOOD STANDARDS AGENCY - Westminster,2018-03-16,EXP - SHORT-TERM CONTRACT & AGENCY STAFF,Finance Director & Branch,CAPITA BUSINESS SERVICES LTD,1011705410,1352.48,Short Term Contract and Agency Staff,SL6 1DP,Admin
FOOD STANDARDS AGENCY - Westminster,FOOD STANDARDS AGENCY - Westminster,2018-03-13,EXP - PURCHASE OF GOODS/SERVICES - RAIL TRAVEL,Regulating our Future,REDFERN TRAVEL LTD,1011705351,1348.9,Travel and Subsistence Week 8,BD1 5HQ,ADMIN
FOOD STANDARDS AGENCY - Westminster,FOOD STANDARDS AGENCY - Westminster,2018-03-15,EXP - PURCHASE OF GOODS/SERVICES - RAIL TRAVEL,IT Information & Knowledge Management,REDFERN TRAVEL LTD,1011705401,1347,Travel and Subsistence Week 9,BD1 5HQ,ADMIN
FOOD STANDARDS AGENCY - Westminster,FOOD STANDARDS AGENCY - Westminster,2018-03-20,EXP - PURCHASE OF GOODS/SERVICES - SUBSISTENCE,Operational Delivery,REDFERN TRAVEL LTD,1011705444,1307.01,Travel and Subsistence Week 10,BD1 5HQ,PROGRAMME
FOOD STANDARDS AGENCY - Westminster,FOOD STANDARDS AGENCY - Westminster,2018-03-29,EXP - PURCHASE OF GOODS/SERVICES - RAIL TRAVEL,Corporate Support Unit,REDFERN TRAVEL LTD,1011705550,1292.8,Travel and Subsistence Week 11,BD1 5HQ,ADMIN
FOOD STANDARDS AGENCY - Westminster,FOOD STANDARDS AGENCY - Westminster,2018-03-15,EXP - PURCHASE OF GOODS/SERVICES - SUBSISTENCE,Regulatory Delivery ,REDFERN TRAVEL LTD,1011705401,1291.12,Travel and Subsistence Week 9,BD1 5HQ,ADMIN
FOOD STANDARDS AGENCY - Westminster,FOOD STANDARDS AGENCY - Westminster,2018-03-16,EXP - SHORT-TERM CONTRACT & AGENCY STAFF,Planning and Performance,CAPITA BUSINESS SERVICES LTD,1011705410,1290,Short Term Contract and Agency Staff,SL6 1DP,Admin
FOOD STANDARDS AGENCY - Westminster,FOOD STANDARDS AGENCY - Westminster,2018-03-16,EXP - SHORT-TERM CONTRACT & AGENCY STAFF,Food Crime Unit - Prog,CAPITA BUSINESS SERVICES LTD,1011705410,1284.84,Short Term Contract and Agency Staff,SL6 1DP,Programme
FOOD STANDARDS AGENCY - Westminster,FOOD STANDARDS AGENCY - Westminster,2018-03-16,EXP - SHORT-TERM CONTRACT & AGENCY STAFF,Food Crime Unit - Prog,CAPITA BUSINESS SERVICES LTD,1011705410,1263.43,Short Term Contract and Agency Staff,SL6 1DP,Programme
FOOD STANDARDS AGENCY - Westminster,FOOD STANDARDS AGENCY - Westminster,2018-03-16,EXP - SHORT-TERM CONTRACT & AGENCY STAFF,Food Crime Unit - Prog,CAPITA BUSINESS SERVICES LTD,1011705410,1263.43,Short Term Contract and Agency Staff,SL6 1DP,Programme
FOOD STANDARDS AGENCY - Westminster,FOOD STANDARDS AGENCY - Westminster,2018-03-16,EXP - SHORT-TERM CONTRACT & AGENCY STAFF,Food Crime Unit - Prog,CAPITA BUSINESS SERVICES LTD,1011705410,1263.43,Short Term Contract and Agency Staff,SL6 1DP,Programme
FOOD STANDARDS AGENCY - Westminster,FOOD STANDARDS AGENCY - Westminster,2018-03-29,EXP - PURCHASE OF GOODS/SERVICES - SUBSISTENCE,Operations Assurance ,REDFERN TRAVEL LTD,1011705550,1257.79,Travel and Subsistence Week 11,BD1 5HQ,PROGRAMME
FOOD STANDARDS AGENCY - Westminster,FOOD STANDARDS AGENCY - Westminster,2018-03-29,EXP - PURCHASE OF GOODS/SERVICES - RAIL TRAVEL,Organisational Development,REDFERN TRAVEL LTD,1011705550,1249.1,Travel and Subsistence Week 11,BD1 5HQ,ADMIN
FOOD STANDARDS AGENCY - Westminster,FOOD STANDARDS AGENCY - Westminster,2018-03-13,EXP - PURCHASE OF GOODS/SERVICES - RAIL TRAVEL,Comms Directors Office,REDFERN TRAVEL LTD,1011705351,1243.7,Travel and Subsistence Week 8,BD1 5HQ,ADMIN
FOOD STANDARDS AGENCY - Westminster,FOOD STANDARDS AGENCY - Westminster,2018-03-20,EXP - PURCHASE OF GOODS/SERVICES - RAIL TRAVEL,Organisational Development,REDFERN TRAVEL LTD,1011705444,1233.25,Travel and Subsistence Week 10,BD1 5HQ,ADMIN
FOOD STANDARDS AGENCY - Westminster,FOOD STANDARDS AGENCY - Westminster,2018-03-20,EXP - PURCHASE OF GOODS/SERVICES - RAIL TRAVEL,IT Information & Knowledge Management,REDFERN TRAVEL LTD,1011705444,1201,Travel and Subsistence Week 10,BD1 5HQ,ADMIN
FOOD STANDARDS AGENCY - Westminster,FOOD STANDARDS AGENCY - Westminster,2018-03-13,EXP - PURCHASE OF GOODS/SERVICES -  FOREIGN AIR TRAVEL,Analysis & Research Branch,REDFERN TRAVEL LTD,1011705351,1171.56,Travel and Subsistence Week 8,BD1 5HQ,ADMIN
FOOD STANDARDS AGENCY - Westminster,FOOD STANDARDS AGENCY - Westminster,2018-03-15,EXP - PURCHASE OF GOODS/SERVICES - AIR TRAVEL,Scientific Methods & Laboratory Policy,REDFERN TRAVEL LTD,1011705401,1139.81,Travel and Subsistence Week 9,BD1 5HQ,ADMIN
FOOD STANDARDS AGENCY - Westminster,FOOD STANDARDS AGENCY - Westminster,2018-03-29,EXP - PURCHASE OF GOODS/SERVICES - SUBSISTENCE,Operational Delivery,REDFERN TRAVEL LTD,1011705550,1099.43,Travel and Subsistence Week 11,BD1 5HQ,PROGRAMME
FOOD STANDARDS AGENCY - Westminster,FOOD STANDARDS AGENCY - Westminster,2018-03-29,EXP - PURCHASE OF GOODS/SERVICES - SUBSISTENCE,Regulating our Future,REDFERN TRAVEL LTD,1011705550,1086.1,Travel and Subsistence Week 11,BD1 5HQ,ADMIN
FOOD STANDARDS AGENCY - Westminster,FOOD STANDARDS AGENCY - Westminster,2018-03-13,EXP - PURCHASE OF GOODS/SERVICES - RAIL TRAVEL,Regulatory & International,REDFERN TRAVEL LTD,1011705351,1060.65,Travel and Subsistence Week 8,BD1 5HQ,ADMIN
FOOD STANDARDS AGENCY - Westminster,FOOD STANDARDS AGENCY - Westminster,2018-03-29,EXP - PURCHASE OF GOODS/SERVICES - RAIL TRAVEL,IT Information & Knowledge Management,REDFERN TRAVEL LTD,1011705550,1045,Travel and Subsistence Week 11,BD1 5HQ,ADMIN
FOOD STANDARDS AGENCY - Westminster,FOOD STANDARDS AGENCY - Westminster,2018-03-20,EXP - PURCHASE OF GOODS/SERVICES - RAIL TRAVEL,Regulatory Delivery ,REDFERN TRAVEL LTD,1011705444,1042,Travel and Subsistence Week 10,BD1 5HQ,ADMIN
FOOD STANDARDS AGENCY - Westminster,FOOD STANDARDS AGENCY - Westminster,2018-03-13,EXP - PURCHASE OF GOODS/SERVICES - SUBSISTENCE,Regulating our Future,REDFERN TRAVEL LTD,1011705351,1011.73,Travel and Subsistence Week 8,BD1 5HQ,ADMIN
FOOD STANDARDS AGENCY - Westminster,FOOD STANDARDS AGENCY - Westminster,2018-03-20,EXP - PURCHASE OF GOODS/SERVICES - SUBSISTENCE,Operations Assurance ,REDFERN TRAVEL LTD,1011705444,959.57,Travel and Subsistence Week 10,BD1 5HQ,PROGRAMME
FOOD STANDARDS AGENCY - Westminster,FOOD STANDARDS AGENCY - Westminster,2018-03-13,EXP - PURCHASE OF GOODS/SERVICES - AIR TRAVEL,Legal Branch A & Investigations,REDFERN TRAVEL LTD,1011705351,944.56,Travel and Subsistence Week 8,BD1 5HQ,ADMIN
FOOD STANDARDS AGENCY - Westminster,FOOD STANDARDS AGENCY - Westminster,2018-03-20,EXP - PURCHASE OF GOODS/SERVICES - RAIL TRAVEL,Regulating our Future,REDFERN TRAVEL LTD,1011705444,942,Travel and Subsistence Week 10,BD1 5HQ,ADMIN
FOOD STANDARDS AGENCY - Westminster,FOOD STANDARDS AGENCY - Westminster,2018-03-29,EXP - PURCHASE OF GOODS/SERVICES - RAIL TRAVEL,Food Incidents & Resilience - Prog,REDFERN TRAVEL LTD,1011705550,941.55,Travel and Subsistence Week 11,BD1 5HQ,PROGRAMME
FOOD STANDARDS AGENCY - Westminster,FOOD STANDARDS AGENCY - Westminster,2018-03-13,EXP - PURCHASE OF GOODS/SERVICES - AIR TRAVEL,Comms Directors Office,REDFERN TRAVEL LTD,1011705351,910.87,Travel and Subsistence Week 8,BD1 5HQ,ADMIN
FOOD STANDARDS AGENCY - Westminster,FOOD STANDARDS AGENCY - Westminster,2018-03-29,EXP - PURCHASE OF GOODS/SERVICES - AIR TRAVEL,Organisational Development,REDFERN TRAVEL LTD,1011705550,894.68,Travel and Subsistence Week 11,BD1 5HQ,ADMIN
FOOD STANDARDS AGENCY - Westminster,FOOD STANDARDS AGENCY - Westminster,2018-03-15,EXP - PURCHASE OF GOODS/SERVICES - SUBSISTENCE,Comms Directors Office,REDFERN TRAVEL LTD,1011705401,867.46,Travel and Subsistence Week 9,BD1 5HQ,ADMIN
FOOD STANDARDS AGENCY - Westminster,FOOD STANDARDS AGENCY - Westminster,2018-03-20,EXP - PURCHASE OF GOODS/SERVICES - RAIL TRAVEL,Procurement,REDFERN TRAVEL LTD,1011705444,818.9,Travel and Subsistence Week 10,BD1 5HQ,ADMIN
FOOD STANDARDS AGENCY - Westminster,FOOD STANDARDS AGENCY - Westminster,2018-03-20,EXP - PURCHASE OF GOODS/SERVICES -  FOREIGN AIR TRAVEL,EU Regulatory Reform Branch,REDFERN TRAVEL LTD,1011705444,810.85,Travel and Subsistence Week 10,BD1 5HQ,ADMIN
FOOD STANDARDS AGENCY - Westminster,FOOD STANDARDS AGENCY - Westminster,2018-03-20,EXP - PURCHASE OF GOODS/SERVICES - RAIL TRAVEL,Food Incidents & Resilience - Prog,REDFERN TRAVEL LTD,1011705444,804.5,Travel and Subsistence Week 10,BD1 5HQ,PROGRAMME
FOOD STANDARDS AGENCY - Westminster,FOOD STANDARDS AGENCY - Westminster,2018-03-20,EXP - PURCHASE OF GOODS/SERVICES - SUBSISTENCE,East 4,REDFERN TRAVEL LTD,1011705444,754.25,Travel and Subsistence Week 10,BD1 5HQ,PROGRAMME
FOOD STANDARDS AGENCY - Westminster,FOOD STANDARDS AGENCY - Westminster,2018-03-12,EXP - PURCHASE OF GOODS/SERVICES  - IT MANAGEMENT AND CHANGE - IT DEVELOPMENT,IT Strategy,EXPONENTIAL E LTD,1011705330,745,Resillient Centralised Internet and Firewalls Setup Charge,E1 8EU,Admin
FOOD STANDARDS AGENCY - Westminster,FOOD STANDARDS AGENCY - Westminster,2018-03-15,EXP - PURCHASE OF GOODS/SERVICES - RAIL TRAVEL,Procurement,REDFERN TRAVEL LTD,1011705401,722.1,Travel and Subsistence Week 9,BD1 5HQ,ADMIN
FOOD STANDARDS AGENCY - Westminster,FOOD STANDARDS AGENCY - Westminster,2018-03-13,EXP - PURCHASE OF GOODS/SERVICES - RAIL TRAVEL,Food Incidents & Resilience - Prog,REDFERN TRAVEL LTD,1011705351,716.3,Travel and Subsistence Week 8,BD1 5HQ,PROGRAMME
FOOD STANDARDS AGENCY - Westminster,FOOD STANDARDS AGENCY - Westminster,2018-03-29,EXP - PURCHASE OF GOODS/SERVICES - RAIL TRAVEL,Comms Directors Office,REDFERN TRAVEL LTD,1011705550,716.2,Travel and Subsistence Week 11,BD1 5HQ,ADMIN
FOOD STANDARDS AGENCY - Westminster,FOOD STANDARDS AGENCY - Westminster,2018-03-13,EXP - PURCHASE OF GOODS/SERVICES - AIR TRAVEL,Regulatory & International,REDFERN TRAVEL LTD,1011705351,705.66,Travel and Subsistence Week 8,BD1 5HQ,ADMIN
FOOD STANDARDS AGENCY - Westminster,FOOD STANDARDS AGENCY - Westminster,2018-03-15,EXP - PURCHASE OF GOODS/SERVICES - SUBSISTENCE,Non Meat Field Ops,REDFERN TRAVEL LTD,1011705401,704.18,Travel and Subsistence Week 9,BD1 5HQ,PROGRAMME
FOOD STANDARDS AGENCY - Westminster,FOOD STANDARDS AGENCY - Westminster,2018-03-29,EXP - PURCHASE OF GOODS/SERVICES - SUBSISTENCE,Regulatory Delivery ,REDFERN TRAVEL LTD,1011705550,692.1,Travel and Subsistence Week 11,BD1 5HQ,ADMIN
FOOD STANDARDS AGENCY - Westminster,FOOD STANDARDS AGENCY - Westminster,2018-03-20,EXP - PURCHASE OF GOODS/SERVICES - SUBSISTENCE,Regulatory Delivery ,REDFERN TRAVEL LTD,1011705444,686.64,Travel and Subsistence Week 10,BD1 5HQ,ADMIN
FOOD STANDARDS AGENCY - Westminster,FOOD STANDARDS AGENCY - Westminster,2018-03-29,EXP - PURCHASE OF GOODS/SERV - SUPPORT - IT SUPPORT SERVICES,IT Strategy,COMPUTACENTER UK LTD,1011705548,673.5, Lenovo sealed battery,AL10 9TW,Admin
FOOD STANDARDS AGENCY - Westminster,FOOD STANDARDS AGENCY - Westminster,2018-03-13,EXP - PURCHASE OF GOODS/SERVICES - SUBSISTENCE,Regulatory & International,REDFERN TRAVEL LTD,1011705351,662.82,Travel and Subsistence Week 8,BD1 5HQ,ADMIN
FOOD STANDARDS AGENCY - Westminster,FOOD STANDARDS AGENCY - Westminster,2018-03-15,EXP - PURCHASE OF GOODS/SERVICES - RAIL TRAVEL,EU Exit,REDFERN TRAVEL LTD,1011705401,661.4,Travel and Subsistence Week 9,BD1 5HQ,ADMIN
FOOD STANDARDS AGENCY - Westminster,FOOD STANDARDS AGENCY - Westminster,2018-03-13,EXP - PURCHASE OF GOODS/SERVICES - SUBSISTENCE,Legal Branch A & Investigations,REDFERN TRAVEL LTD,1011705351,655.82,Travel and Subsistence Week 8,BD1 5HQ,ADMIN
FOOD STANDARDS AGENCY - Westminster,FOOD STANDARDS AGENCY - Westminster,2018-03-15,EXP - PURCHASE OF GOODS/SERVICES - RAIL TRAVEL,Planning and Performance,REDFERN TRAVEL LTD,1011705401,637.9,Travel and Subsistence Week 9,BD1 5HQ,ADMIN
FOOD STANDARDS AGENCY - Westminster,FOOD STANDARDS AGENCY - Westminster,2018-03-13,EXP - PURCHASE OF GOODS/SERVICES - SUBSISTENCE,Operations Assurance ,REDFERN TRAVEL LTD,1011705351,636.17,Travel and Subsistence Week 8,BD1 5HQ,PROGRAMME
FOOD STANDARDS AGENCY - Westminster,FOOD STANDARDS AGENCY - Westminster,2018-03-15,EXP - PURCHASE OF GOODS/SERVICES - SUBSISTENCE,Operations Assurance ,REDFERN TRAVEL LTD,1011705401,630.48,Travel and Subsistence Week 9,BD1 5HQ,PROGRAMME
FOOD STANDARDS AGENCY - Westminster,FOOD STANDARDS AGENCY - Westminster,2018-03-29,EXP - PURCHASE OF GOODS/SERVICES - SUBSISTENCE,Food Crime Unit - Prog,REDFERN TRAVEL LTD,1011705550,609.9,Travel and Subsistence Week 11,BD1 5HQ,PROGRAMME
FOOD STANDARDS AGENCY - Westminster,FOOD STANDARDS AGENCY - Westminster,2018-03-29,EXP - PURCHASE OF GOODS/SERVICES - RAIL TRAVEL,Planning and Performance,REDFERN TRAVEL LTD,1011705550,599.3,Travel and Subsistence Week 11,BD1 5HQ,ADMIN
FOOD STANDARDS AGENCY - Westminster,FOOD STANDARDS AGENCY - Westminster,2018-03-29,EXP - PURCHASE OF GOODS/SERVICES - SUBSISTENCE,Animal Feed Branch,REDFERN TRAVEL LTD,1011705550,559.8,Travel and Subsistence Week 11,BD1 5HQ,ADMIN
FOOD STANDARDS AGENCY - Westminster,FOOD STANDARDS AGENCY - Westminster,2018-03-13,EXP - PURCHASE OF GOODS/SERVICES - RAIL TRAVEL,East 4,REDFERN TRAVEL LTD,1011705351,553.1,Travel and Subsistence Week 8,BD1 5HQ,PROGRAMME
FOOD STANDARDS AGENCY - Westminster,FOOD STANDARDS AGENCY - Westminster,2018-03-13,EXP - PURCHASE OF GOODS/SERVICES - RAIL TRAVEL,Finance Director & Branch,REDFERN TRAVEL LTD,1011705351,548.95,Travel and Subsistence Week 8,BD1 5HQ,ADMIN
FOOD STANDARDS AGENCY - Westminster,FOOD STANDARDS AGENCY - Westminster,2018-03-13,EXP - PURCHASE OF GOODS/SERVICES - SUBSISTENCE,Contaminants HoD,REDFERN TRAVEL LTD,1011705351,541.18,Travel and Subsistence Week 8,BD1 5HQ,ADMIN
FOOD STANDARDS AGENCY - Westminster,FOOD STANDARDS AGENCY - Westminster,2018-03-15,EXP - PURCHASE OF GOODS/SERVICES - RAIL TRAVEL,Finance Director & Branch,REDFERN TRAVEL LTD,1011705401,541,Travel and Subsistence Week 9,BD1 5HQ,ADMIN
FOOD STANDARDS AGENCY - Westminster,FOOD STANDARDS AGENCY - Westminster,2018-03-29,EXP - PURCHASE OF GOODS/SERVICES - FOREIGN SUBSISTENCE,Contaminants Policy & Strategy Unit,REDFERN TRAVEL LTD,1011705550,524.94,Travel and Subsistence Week 11,BD1 5HQ,ADMIN
FOOD STANDARDS AGENCY - Westminster,FOOD STANDARDS AGENCY - Westminster,2018-03-15,EXP - PURCHASE OF GOODS/SERVICES - RAIL TRAVEL,North 2,REDFERN TRAVEL LTD,1011705401,524.9,Travel and Subsistence Week 9,BD1 5HQ,PROGRAMME
FOOD STANDARDS AGENCY - Westminster,FOOD STANDARDS AGENCY - Westminster,2018-03-20,EXP - PURCHASE OF GOODS/SERVICES - SUBSISTENCE,Wales and West 4 ,REDFERN TRAVEL LTD,1011705444,523.89,Travel and Subsistence Week 10,BD1 5HQ,PROGRAMME
FOOD STANDARDS AGENCY - Westminster,FOOD STANDARDS AGENCY - Westminster,2018-03-29,EXP - PURCHASE OF GOODS/SERVICES - SUBSISTENCE,Organisational Development,REDFERN TRAVEL LTD,1011705550,521.15,Travel and Subsistence Week 11,BD1 5HQ,ADMIN
FOOD STANDARDS AGENCY - Westminster,FOOD STANDARDS AGENCY - Westminster,2018-03-13,EXP - AMORTISATION - INTANGIBLE ASSETS,OWOW,FLEXIFORM BUSINESS FURNITURE LTD,1011705346,520.9,Clive House Furniture,EC1V 3RS,Capital
FOOD STANDARDS AGENCY - Westminster,FOOD STANDARDS AGENCY - Westminster,2018-03-20,EXP - PURCHASE OF GOODS/SERVICES - RAIL TRAVEL,Internal Audit,REDFERN TRAVEL LTD,1011705444,504.9,Travel and Subsistence Week 10,BD1 5HQ,ADMIN
FOOD STANDARDS AGENCY - Westminster,FOOD STANDARDS AGENCY - Westminster,2018-03-29,EXP - PURCHASE OF GOODS/SERVICES - SUBSISTENCE,Comms Directors Office,REDFERN TRAVEL LTD,1011705550,503.3,Travel and Subsistence Week 11,BD1 5HQ,ADMIN
FOOD STANDARDS AGENCY - Westminster,FOOD STANDARDS AGENCY - Westminster,2018-03-08,EXP - PURCHASE OF GOODS/SERV - SUPPORT - IT SUPPORT SERVICES,IT Service Delivery,LITTLE FISH UK LTD,1011705306,501,Monthly Training Service Charge Sept 17 - Mar 18,NG1 1LS,Admin
FOOD STANDARDS AGENCY - Westminster,FOOD STANDARDS AGENCY - Westminster,2018-03-15,EXP - PURCHASE OF GOODS/SERVICES - RAIL TRAVEL,North 3,REDFERN TRAVEL LTD,1011705401,493.75,Travel and Subsistence Week 9,BD1 5HQ,PROGRAMME
FOOD STANDARDS AGENCY - Westminster,FOOD STANDARDS AGENCY - Westminster,2018-03-15,EXP - PURCHASE OF GOODS/SERVICES - RAIL TRAVEL,North 1,REDFERN TRAVEL LTD,1011705401,490.1,Travel and Subsistence Week 9,BD1 5HQ,PROGRAMME
FOOD STANDARDS AGENCY - Westminster,FOOD STANDARDS AGENCY - Westminster,2018-03-29,EXP - PURCHASE OF GOODS/SERVICES - RAIL TRAVEL,Programme and project delivery,REDFERN TRAVEL LTD,1011705550,488.1,Travel and Subsistence Week 11,BD1 5HQ,ADMIN
FOOD STANDARDS AGENCY - Westminster,FOOD STANDARDS AGENCY - Westminster,2018-03-20,EXP - PURCHASE OF GOODS/SERVICES - RAIL TRAVEL,Wales and West 2 (England),REDFERN TRAVEL LTD,1011705444,481.45,Travel and Subsistence Week 10,BD1 5HQ,PROGRAMME
FOOD STANDARDS AGENCY - Westminster,FOOD STANDARDS AGENCY - Westminster,2018-03-13,EXP - PURCHASE OF GOODS/SERVICES - AIR TRAVEL,Regulating our Future,REDFERN TRAVEL LTD,1011705351,480.26,Travel and Subsistence Week 8,BD1 5HQ,ADMIN
FOOD STANDARDS AGENCY - Westminster,FOOD STANDARDS AGENCY - Westminster,2018-03-13,EXP - PURCHASE OF GOODS/SERVICES - SUBSISTENCE,Planning and Performance,REDFERN TRAVEL LTD,1011705351,472.4,Travel and Subsistence Week 8,BD1 5HQ,ADMIN
FOOD STANDARDS AGENCY - Westminster,FOOD STANDARDS AGENCY - Westminster,2018-03-15,EXP - PURCHASE OF GOODS/SERVICES - RAIL TRAVEL,Organisational Development,REDFERN TRAVEL LTD,1011705401,471.6,Travel and Subsistence Week 9,BD1 5HQ,ADMIN
FOOD STANDARDS AGENCY - Westminster,FOOD STANDARDS AGENCY - Westminster,2018-03-13,EXP - PURCHASE OF GOODS/SERVICES - RAIL TRAVEL,Chief Executive & Private Office,REDFERN TRAVEL LTD,1011705351,468,Travel and Subsistence Week 8,BD1 5HQ,ADMIN
FOOD STANDARDS AGENCY - Westminster,FOOD STANDARDS AGENCY - Westminster,2018-03-29,EXP - PURCHASE OF GOODS/SERVICES - AIR TRAVEL,EU Regulatory Reform Branch,REDFERN TRAVEL LTD,1011705550,467.11,Travel and Subsistence Week 11,BD1 5HQ,ADMIN
FOOD STANDARDS AGENCY - Westminster,FOOD STANDARDS AGENCY - Westminster,2018-03-29,EXP - PURCHASE OF GOODS/SERVICES - RAIL TRAVEL,Food Crime Unit - Prog,REDFERN TRAVEL LTD,1011705550,465.5,Travel and Subsistence Week 11,BD1 5HQ,PROGRAMME
FOOD STANDARDS AGENCY - Westminster,FOOD STANDARDS AGENCY - Westminster,2018-03-13,EXP - PURCHASE OF GOODS/SERVICES - SUBSISTENCE,Regulatory Delivery ,REDFERN TRAVEL LTD,1011705351,465.37,Travel and Subsistence Week 8,BD1 5HQ,ADMIN
FOOD STANDARDS AGENCY - Westminster,FOOD STANDARDS AGENCY - Westminster,2018-03-20,EXP - PURCHASE OF GOODS/SERVICES - RAIL TRAVEL,Food Crime Unit - Admin,REDFERN TRAVEL LTD,1011705444,459.7,Travel and Subsistence Week 10,BD1 5HQ,ADMIN
FOOD STANDARDS AGENCY - Westminster,FOOD STANDARDS AGENCY - Westminster,2018-03-15,EXP - PURCHASE OF GOODS/SERVICES -  FOREIGN AIR TRAVEL,EU Exit,REDFERN TRAVEL LTD,1011705401,459.7,Travel and Subsistence Week 9,BD1 5HQ,ADMIN
FOOD STANDARDS AGENCY - Westminster,FOOD STANDARDS AGENCY - Westminster,2018-03-20,EXP - PURCHASE OF GOODS/SERVICES -  FOREIGN AIR TRAVEL,Contaminants HoD,REDFERN TRAVEL LTD,1011705444,456,Travel and Subsistence Week 10,BD1 5HQ,ADMIN
FOOD STANDARDS AGENCY - Westminster,FOOD STANDARDS AGENCY - Westminster,2018-03-15,EXP - PURCHASE OF GOODS/SERVICES - AIR TRAVEL,Food Incidents & Resilience - Prog,REDFERN TRAVEL LTD,1011705401,453.06,Travel and Subsistence Week 9,BD1 5HQ,PROGRAMME
FOOD STANDARDS AGENCY - Westminster,FOOD STANDARDS AGENCY - Westminster,2018-03-15,EXP - PURCHASE OF GOODS/SERVICES - AIR TRAVEL,Organisational Development,REDFERN TRAVEL LTD,1011705401,452.69,Travel and Subsistence Week 9,BD1 5HQ,ADMIN
FOOD STANDARDS AGENCY - Westminster,FOOD STANDARDS AGENCY - Westminster,2018-03-13,EXP - PURCHASE OF GOODS/SERVICES - RAIL TRAVEL,Planning and Performance,REDFERN TRAVEL LTD,1011705351,446.9,Travel and Subsistence Week 8,BD1 5HQ,ADMIN
FOOD STANDARDS AGENCY - Westminster,FOOD STANDARDS AGENCY - Westminster,2018-03-13,EXP - PURCHASE OF GOODS/SERVICES -  FOREIGN AIR TRAVEL,Contaminants Policy & Strategy Unit,REDFERN TRAVEL LTD,1011705351,445.96,Travel and Subsistence Week 8,BD1 5HQ,ADMIN
FOOD STANDARDS AGENCY - Westminster,FOOD STANDARDS AGENCY - Westminster,2018-03-15,EXP - PURCHASE OF GOODS/SERVICES - SUBSISTENCE,Food Incidents & Resilience - Prog,REDFERN TRAVEL LTD,1011705401,445.7,Travel and Subsistence Week 9,BD1 5HQ,PROGRAMME
FOOD STANDARDS AGENCY - Westminster,FOOD STANDARDS AGENCY - Westminster,2018-03-13,EXP - PURCHASE OF GOODS/SERVICES - RAIL TRAVEL,Contaminants HoD,REDFERN TRAVEL LTD,1011705351,438,Travel and Subsistence Week 8,BD1 5HQ,ADMIN
FOOD STANDARDS AGENCY - Westminster,FOOD STANDARDS AGENCY - Westminster,2018-03-20,EXP - PURCHASE OF GOODS/SERVICES - FOREIGN SUBSISTENCE,Scientific Methods & Laboratory Policy,REDFERN TRAVEL LTD,1011705444,432.12,Travel and Subsistence Week 10,BD1 5HQ,ADMIN
FOOD STANDARDS AGENCY - Westminster,FOOD STANDARDS AGENCY - Westminster,2018-03-15,EXP - PURCHASE OF GOODS/SERVICES - RAIL TRAVEL,East 4,REDFERN TRAVEL LTD,1011705401,430.3,Travel and Subsistence Week 9,BD1 5HQ,PROGRAMME
FOOD STANDARDS AGENCY - Westminster,FOOD STANDARDS AGENCY - Westminster,2018-03-15,EXP - PURCHASE OF GOODS/SERVICES - AIR TRAVEL,EU Exit,REDFERN TRAVEL LTD,1011705401,430.26,Travel and Subsistence Week 9,BD1 5HQ,ADMIN
FOOD STANDARDS AGENCY - Westminster,FOOD STANDARDS AGENCY - Westminster,2018-03-15,EXP - PURCHASE OF GOODS/SERVICES - SUBSISTENCE,Wales and West 1 (Wales),REDFERN TRAVEL LTD,1011705401,427.27,Travel and Subsistence Week 9,BD1 5HQ,PROGRAMME
FOOD STANDARDS AGENCY - Westminster,FOOD STANDARDS AGENCY - Westminster,2018-03-29,EXP - PURCHASE OF GOODS/SERVICES - AIR TRAVEL,Operations Assurance ,REDFERN TRAVEL LTD,1011705550,412.07,Travel and Subsistence Week 11,BD1 5HQ,PROGRAMME
FOOD STANDARDS AGENCY - Westminster,FOOD STANDARDS AGENCY - Westminster,2018-03-13,EXP - PURCHASE OF GOODS/SERVICES - SUBSISTENCE,Operational Delivery,REDFERN TRAVEL LTD,1011705351,401.05,Travel and Subsistence Week 8,BD1 5HQ,PROGRAMME
FOOD STANDARDS AGENCY - Westminster,FOOD STANDARDS AGENCY - Westminster,2018-03-29,EXP - PURCHASE OF GOODS/SERVICES - RAIL TRAVEL,Wales and West 4 ,REDFERN TRAVEL LTD,1011705550,391.7,Travel and Subsistence Week 11,BD1 5HQ,PROGRAMME
FOOD STANDARDS AGENCY - Westminster,FOOD STANDARDS AGENCY - Westminster,2018-03-20,EXP - PURCHASE OF GOODS/SERVICES - SUBSISTENCE,IT Information & Knowledge Management,REDFERN TRAVEL LTD,1011705444,391.55,Travel and Subsistence Week 10,BD1 5HQ,ADMIN
FOOD STANDARDS AGENCY - Westminster,FOOD STANDARDS AGENCY - Westminster,2018-03-29,EXP - PURCHASE OF GOODS/SERVICES - RAIL TRAVEL,EU Exit,REDFERN TRAVEL LTD,1011705550,390.2,Travel and Subsistence Week 11,BD1 5HQ,ADMIN
FOOD STANDARDS AGENCY - Westminster,FOOD STANDARDS AGENCY - Westminster,2018-03-29,EXP - PURCHASE OF GOODS/SERVICES - SUBSISTENCE,North 1,REDFERN TRAVEL LTD,1011705550,381.55,Travel and Subsistence Week 11,BD1 5HQ,PROGRAMME
FOOD STANDARDS AGENCY - Westminster,FOOD STANDARDS AGENCY - Westminster,2018-03-20,EXP - PURCHASE OF GOODS/SERVICES - RAIL TRAVEL,Non Meat Field Ops,REDFERN TRAVEL LTD,1011705444,376.35,Travel and Subsistence Week 10,BD1 5HQ,PROGRAMME
FOOD STANDARDS AGENCY - Westminster,FOOD STANDARDS AGENCY - Westminster,2018-03-29,EXP - PURCHASE OF GOODS/SERVICES - SUBSISTENCE,Finance Director & Branch,REDFERN TRAVEL LTD,1011705550,371,Travel and Subsistence Week 11,BD1 5HQ,ADMIN
FOOD STANDARDS AGENCY - Westminster,FOOD STANDARDS AGENCY - Westminster,2018-03-15,EXP - PURCHASE OF GOODS/SERVICES - SUBSISTENCE,Wales and West 4 ,REDFERN TRAVEL LTD,1011705401,369,Travel and Subsistence Week 9,BD1 5HQ,PROGRAMME
FOOD STANDARDS AGENCY - Westminster,FOOD STANDARDS AGENCY - Westminster,2018-03-29,EXP - PURCHASE OF GOODS/SERVICES - SUBSISTENCE,Food Incidents & Resilience - Prog,REDFERN TRAVEL LTD,1011705550,364.65,Travel and Subsistence Week 11,BD1 5HQ,PROGRAMME
FOOD STANDARDS AGENCY - Westminster,FOOD STANDARDS AGENCY - Westminster,2018-03-29,EXP - PURCHASE OF GOODS/SERVICES - RAIL TRAVEL,Wales and West 3 ,REDFERN TRAVEL LTD,1011705550,361.2,Travel and Subsistence Week 11,BD1 5HQ,PROGRAMME
FOOD STANDARDS AGENCY - Westminster,FOOD STANDARDS AGENCY - Westminster,2018-03-20,EXP - PURCHASE OF GOODS/SERVICES - SUBSISTENCE,Food Incidents & Resilience - Prog,REDFERN TRAVEL LTD,1011705444,357.65,Travel and Subsistence Week 10,BD1 5HQ,PROGRAMME
FOOD STANDARDS AGENCY - Westminster,FOOD STANDARDS AGENCY - Westminster,2018-03-20,EXP - PURCHASE OF GOODS/SERVICES - SUBSISTENCE,Legal Branch A & Investigations,REDFERN TRAVEL LTD,1011705444,353.64,Travel and Subsistence Week 10,BD1 5HQ,ADMIN
FOOD STANDARDS AGENCY - Westminster,FOOD STANDARDS AGENCY - Westminster,2018-03-15,EXP - PURCHASE OF GOODS/SERVICES -  FOREIGN AIR TRAVEL,Contaminants Policy & Strategy Unit,REDFERN TRAVEL LTD,1011705401,350,Travel and Subsistence Week 9,BD1 5HQ,ADMIN
FOOD STANDARDS AGENCY - Westminster,FOOD STANDARDS AGENCY - Westminster,2018-03-16,EXP - SHORT-TERM CONTRACT & AGENCY STAFF,IT Service Delivery,CAPITA BUSINESS SERVICES LTD,1011705410,349.13,Short Term Contract and Agency Staff,SL6 1DP,Admin
FOOD STANDARDS AGENCY - Westminster,FOOD STANDARDS AGENCY - Westminster,2018-03-29,EXP - PURCHASE OF GOODS/SERVICES - SUBSISTENCE,IT Information & Knowledge Management,REDFERN TRAVEL LTD,1011705550,348.7,Travel and Subsistence Week 11,BD1 5HQ,ADMIN
FOOD STANDARDS AGENCY - Westminster,FOOD STANDARDS AGENCY - Westminster,2018-03-16,EXP - SHORT-TERM CONTRACT & AGENCY STAFF,IT Information & Knowledge Management,CAPITA BUSINESS SERVICES LTD,1011705410,344.82,Short Term Contract and Agency Staff,SL6 1DP,Admin
FOOD STANDARDS AGENCY - Westminster,FOOD STANDARDS AGENCY - Westminster,2018-03-13,EXP - PURCHASE OF GOODS/SERVICES - RAIL TRAVEL,EU Exit,REDFERN TRAVEL LTD,1011705351,343,Travel and Subsistence Week 8,BD1 5HQ,ADMIN
FOOD STANDARDS AGENCY - Westminster,FOOD STANDARDS AGENCY - Westminster,2018-03-16,EXP - SHORT-TERM CONTRACT & AGENCY STAFF,IT Service Delivery,CAPITA BUSINESS SERVICES LTD,1011705410,336.24,Short Term Contract and Agency Staff,SL6 1DP,Admin
FOOD STANDARDS AGENCY - Westminster,FOOD STANDARDS AGENCY - Westminster,2018-03-29,EXP - PURCHASE OF GOODS/SERVICES - RAIL TRAVEL,Chemical Risk Assessment Unit,REDFERN TRAVEL LTD,1011705550,334.9,Travel and Subsistence Week 11,BD1 5HQ,ADMIN
FOOD STANDARDS AGENCY - Westminster,FOOD STANDARDS AGENCY - Westminster,2018-03-29,EXP - PURCHASE OF GOODS/SERVICES - SUBSISTENCE,Scientific Methods & Laboratory Policy,REDFERN TRAVEL LTD,1011705550,332.61,Travel and Subsistence Week 11,BD1 5HQ,ADMIN
FOOD STANDARDS AGENCY - Westminster,FOOD STANDARDS AGENCY - Westminster,2018-03-20,EXP - PURCHASE OF GOODS/SERVICES - AIR TRAVEL,Operations Assurance ,REDFERN TRAVEL LTD,1011705444,331.88,Travel and Subsistence Week 10,BD1 5HQ,PROGRAMME
FOOD STANDARDS AGENCY - Westminster,FOOD STANDARDS AGENCY - Westminster,2018-03-20,EXP - PURCHASE OF GOODS/SERVICES - SUBSISTENCE,Wales and West 2 (England),REDFERN TRAVEL LTD,1011705444,331.12,Travel and Subsistence Week 10,BD1 5HQ,PROGRAMME
FOOD STANDARDS AGENCY - Westminster,FOOD STANDARDS AGENCY - Westminster,2018-03-29,EXP - PURCHASE OF GOODS/SERVICES - RAIL TRAVEL,Non Meat Field Ops,REDFERN TRAVEL LTD,1011705550,330.8,Travel and Subsistence Week 11,BD1 5HQ,PROGRAMME
FOOD STANDARDS AGENCY - Westminster,FOOD STANDARDS AGENCY - Westminster,2018-03-20,EXP - PURCHASE OF GOODS/SERVICES -  FOREIGN AIR TRAVEL,Scientific Methods & Laboratory Policy,REDFERN TRAVEL LTD,1011705444,329.2,Travel and Subsistence Week 10,BD1 5HQ,ADMIN
FOOD STANDARDS AGENCY - Westminster,FOOD STANDARDS AGENCY - Westminster,2018-03-29,EXP - PURCHASE OF GOODS/SERVICES - SUBSISTENCE,East 3,REDFERN TRAVEL LTD,1011705550,327.3,Travel and Subsistence Week 11,BD1 5HQ,PROGRAMME
FOOD STANDARDS AGENCY - Westminster,FOOD STANDARDS AGENCY - Westminster,2018-03-15,EXP - PURCHASE OF GOODS/SERVICES - SUBSISTENCE,Regulating our Future,REDFERN TRAVEL LTD,1011705401,321.11,Travel and Subsistence Week 9,BD1 5HQ,ADMIN
FOOD STANDARDS AGENCY - Westminster,FOOD STANDARDS AGENCY - Westminster,2018-03-20,EXP - PURCHASE OF GOODS/SERVICES - RAIL TRAVEL,East 2,REDFERN TRAVEL LTD,1011705444,317.2,Travel and Subsistence Week 10,BD1 5HQ,PROGRAMME
FOOD STANDARDS AGENCY - Westminster,FOOD STANDARDS AGENCY - Westminster,2018-03-13,EXP - PURCHASE OF GOODS/SERVICES - SUBSISTENCE,Comms Directors Office,REDFERN TRAVEL LTD,1011705351,315.8,Travel and Subsistence Week 8,BD1 5HQ,ADMIN
FOOD STANDARDS AGENCY - Westminster,FOOD STANDARDS AGENCY - Westminster,2018-03-15,EXP - PURCHASE OF GOODS/SERVICES -  FOREIGN AIR TRAVEL,Internal Audit,REDFERN TRAVEL LTD,1011705401,315.08,Travel and Subsistence Week 9,BD1 5HQ,ADMIN
FOOD STANDARDS AGENCY - Westminster,FOOD STANDARDS AGENCY - Westminster,2018-03-20,EXP - PURCHASE OF GOODS/SERVICES - RAIL TRAVEL,Wales and West 3 ,REDFERN TRAVEL LTD,1011705444,312.1,Travel and Subsistence Week 10,BD1 5HQ,PROGRAMME
FOOD STANDARDS AGENCY - Westminster,FOOD STANDARDS AGENCY - Westminster,2018-03-15,EXP - PURCHASE OF GOODS/SERVICES -  FOREIGN AIR TRAVEL,Contaminants HoD,REDFERN TRAVEL LTD,1011705401,308.51,Travel and Subsistence Week 9,BD1 5HQ,ADMIN
FOOD STANDARDS AGENCY - Westminster,FOOD STANDARDS AGENCY - Westminster,2018-03-20,EXP - PURCHASE OF GOODS/SERVICES - SUBSISTENCE,Non Meat Field Ops,REDFERN TRAVEL LTD,1011705444,296.17,Travel and Subsistence Week 10,BD1 5HQ,PROGRAMME
FOOD STANDARDS AGENCY - Westminster,FOOD STANDARDS AGENCY - Westminster,2018-03-13,EXP - PURCHASE OF GOODS/SERVICES - AIR TRAVEL,Operations Assurance ,REDFERN TRAVEL LTD,1011705351,295.81,Travel and Subsistence Week 8,BD1 5HQ,PROGRAMME
FOOD STANDARDS AGENCY - Westminster,FOOD STANDARDS AGENCY - Westminster,2018-03-29,EXP - PURCHASE OF GOODS/SERVICES - RAIL TRAVEL,North 1,REDFERN TRAVEL LTD,1011705550,290.45,Travel and Subsistence Week 11,BD1 5HQ,PROGRAMME
FOOD STANDARDS AGENCY - Westminster,FOOD STANDARDS AGENCY - Westminster,2018-03-15,EXP - PURCHASE OF GOODS/SERVICES - SUBSISTENCE,North 1,REDFERN TRAVEL LTD,1011705401,289.63,Travel and Subsistence Week 9,BD1 5HQ,PROGRAMME
FOOD STANDARDS AGENCY - Westminster,FOOD STANDARDS AGENCY - Westminster,2018-03-13,EXP - PURCHASE OF GOODS/SERVICES - RAIL TRAVEL,Wales and West 4 ,REDFERN TRAVEL LTD,1011705351,285.7,Travel and Subsistence Week 8,BD1 5HQ,PROGRAMME
FOOD STANDARDS AGENCY - Westminster,FOOD STANDARDS AGENCY - Westminster,2018-03-20,EXP - PURCHASE OF GOODS/SERVICES - FOREIGN SUBSISTENCE,Additives,REDFERN TRAVEL LTD,1011705444,285.41,Travel and Subsistence Week 10,BD1 5HQ,ADMIN
FOOD STANDARDS AGENCY - Westminster,FOOD STANDARDS AGENCY - Westminster,2018-03-15,EXP - PURCHASE OF GOODS/SERVICES - AIR TRAVEL,Operations Assurance ,REDFERN TRAVEL LTD,1011705401,280.52,Travel and Subsistence Week 9,BD1 5HQ,PROGRAMME
FOOD STANDARDS AGENCY - Westminster,FOOD STANDARDS AGENCY - Westminster,2018-03-13,EXP - PURCHASE OF GOODS/SERVICES - FOREIGN SUBSISTENCE,Chief Scientist,REDFERN TRAVEL LTD,1011705351,279.19,Travel and Subsistence Week 8,BD1 5HQ,ADMIN
FOOD STANDARDS AGENCY - Westminster,FOOD STANDARDS AGENCY - Westminster,2018-03-20,EXP - PURCHASE OF GOODS/SERVICES - AIR TRAVEL,Animal Feed Branch,REDFERN TRAVEL LTD,1011705444,276.93,Travel and Subsistence Week 10,BD1 5HQ,ADMIN
FOOD STANDARDS AGENCY - Westminster,FOOD STANDARDS AGENCY - Westminster,2018-03-29,EXP - PURCHASE OF GOODS/SERVICES - RAIL TRAVEL,Digital,REDFERN TRAVEL LTD,1011705550,276.5,Travel and Subsistence Week 11,BD1 5HQ,ADMIN
FOOD STANDARDS AGENCY - Westminster,FOOD STANDARDS AGENCY - Westminster,2018-03-12,EXP - PURCHASE OF GOODS/SERVICES - TELECOMS - TELEPHONE,IT Service Delivery,EXPONENTIAL E LTD,1011705330,276.32,Year 2 - Operate Charge - York YO1 7PR 1Gb/1Gb,E1 8EU,Admin
FOOD STANDARDS AGENCY - Westminster,FOOD STANDARDS AGENCY - Westminster,2018-03-20,EXP - PURCHASE OF GOODS/SERVICES - RAIL TRAVEL,Chemical Risk Assessment Unit,REDFERN TRAVEL LTD,1011705444,275.9,Travel and Subsistence Week 10,BD1 5HQ,ADMIN
FOOD STANDARDS AGENCY - Westminster,FOOD STANDARDS AGENCY - Westminster,2018-03-20,EXP - PURCHASE OF GOODS/SERVICES - RAIL TRAVEL,Planning and Performance,REDFERN TRAVEL LTD,1011705444,273.5,Travel and Subsistence Week 10,BD1 5HQ,ADMIN
FOOD STANDARDS AGENCY - Westminster,FOOD STANDARDS AGENCY - Westminster,2018-03-13,EXP - PURCHASE OF GOODS/SERVICES - SUBSISTENCE,Imports & Exports Team (Admin),REDFERN TRAVEL LTD,1011705351,271.62,Travel and Subsistence Week 8,BD1 5HQ,ADMIN
FOOD STANDARDS AGENCY - Westminster,FOOD STANDARDS AGENCY - Westminster,2018-03-15,EXP - PURCHASE OF GOODS/SERVICES - RAIL TRAVEL,East 3,REDFERN TRAVEL LTD,1011705401,268.4,Travel and Subsistence Week 9,BD1 5HQ,PROGRAMME
FOOD STANDARDS AGENCY - Westminster,FOOD STANDARDS AGENCY - Westminster,2018-03-13,EXP - PURCHASE OF GOODS/SERVICES -  FOREIGN AIR TRAVEL,Food Incidents & Resilience - Prog,REDFERN TRAVEL LTD,1011705351,263.6,Travel and Subsistence Week 8,BD1 5HQ,PROGRAMME
FOOD STANDARDS AGENCY - Westminster,FOOD STANDARDS AGENCY - Westminster,2018-03-13,EXP - PURCHASE OF GOODS/SERVICES - RAIL TRAVEL,Corporate Support Unit,REDFERN TRAVEL LTD,1011705351,261,Travel and Subsistence Week 8,BD1 5HQ,ADMIN
FOOD STANDARDS AGENCY - Westminster,FOOD STANDARDS AGENCY - Westminster,2018-03-29,EXP - PURCHASE OF GOODS/SERVICES - SUBSISTENCE,Resilience - Admin,REDFERN TRAVEL LTD,1011705550,259.6,Travel and Subsistence Week 11,BD1 5HQ,ADMIN
FOOD STANDARDS AGENCY - Westminster,FOOD STANDARDS AGENCY - Westminster,2018-03-13,EXP - PURCHASE OF GOODS/SERVICES - RAIL TRAVEL,Wales and West 3 ,REDFERN TRAVEL LTD,1011705351,255.1,Travel and Subsistence Week 8,BD1 5HQ,PROGRAMME
FOOD STANDARDS AGENCY - Westminster,FOOD STANDARDS AGENCY - Westminster,2018-03-20,EXP - PURCHASE OF GOODS/SERVICES - RAIL TRAVEL,Chief Executive & Private Office,REDFERN TRAVEL LTD,1011705444,254,Travel and Subsistence Week 10,BD1 5HQ,ADMIN
FOOD STANDARDS AGENCY - Westminster,FOOD STANDARDS AGENCY - Westminster,2018-03-29,EXP - PURCHASE OF GOODS/SERVICES - SUBSISTENCE,Digital,REDFERN TRAVEL LTD,1011705550,251.2,Travel and Subsistence Week 11,BD1 5HQ,ADMIN
FOOD STANDARDS AGENCY - Westminster,FOOD STANDARDS AGENCY - Westminster,2018-03-20,EXP - PURCHASE OF GOODS/SERVICES - RAIL TRAVEL,Wales and West 4 ,REDFERN TRAVEL LTD,1011705444,250.85,Travel and Subsistence Week 10,BD1 5HQ,PROGRAMME
FOOD STANDARDS AGENCY - Westminster,FOOD STANDARDS AGENCY - Westminster,2018-03-29,EXP - PURCHASE OF GOODS/SERVICES - RAIL TRAVEL,Internal Audit,REDFERN TRAVEL LTD,1011705550,248.2,Travel and Subsistence Week 11,BD1 5HQ,ADMIN
FOOD STANDARDS AGENCY - Westminster,FOOD STANDARDS AGENCY - Westminster,2018-03-15,EXP - PURCHASE OF GOODS/SERVICES - RAIL TRAVEL,Regulatory & International,REDFERN TRAVEL LTD,1011705401,245.45,Travel and Subsistence Week 9,BD1 5HQ,ADMIN
FOOD STANDARDS AGENCY - Westminster,FOOD STANDARDS AGENCY - Westminster,2018-03-20,EXP - PURCHASE OF GOODS/SERVICES - SUBSISTENCE,Comms Directors Office,REDFERN TRAVEL LTD,1011705444,242.6,Travel and Subsistence Week 10,BD1 5HQ,ADMIN
FOOD STANDARDS AGENCY - Westminster,FOOD STANDARDS AGENCY - Westminster,2018-03-20,EXP - PURCHASE OF GOODS/SERVICES - SUBSISTENCE,Wales and West 2 (Wales),REDFERN TRAVEL LTD,1011705444,237.72,Travel and Subsistence Week 10,BD1 5HQ,PROGRAMME
FOOD STANDARDS AGENCY - Westminster,FOOD STANDARDS AGENCY - Westminster,2018-03-20,EXP - PURCHASE OF GOODS/SERVICES - AIR TRAVEL,Regulatory Delivery ,REDFERN TRAVEL LTD,1011705444,237.7,Travel and Subsistence Week 10,BD1 5HQ,ADMIN
FOOD STANDARDS AGENCY - Westminster,FOOD STANDARDS AGENCY - Westminster,2018-03-20,EXP - PURCHASE OF GOODS/SERVICES - RAIL TRAVEL,Wales and West 1 (England),REDFERN TRAVEL LTD,1011705444,234.9,Travel and Subsistence Week 10,BD1 5HQ,PROGRAMME
FOOD STANDARDS AGENCY - Westminster,FOOD STANDARDS AGENCY - Westminster,2018-03-29,EXP - PURCHASE OF GOODS/SERVICES - RAIL TRAVEL,Legal Branch A & Investigations,REDFERN TRAVEL LTD,1011705550,233.1,Travel and Subsistence Week 11,BD1 5HQ,ADMIN
FOOD STANDARDS AGENCY - Westminster,FOOD STANDARDS AGENCY - Westminster,2018-03-29,EXP - PURCHASE OF GOODS/SERVICES - SUBSISTENCE,EU Exit,REDFERN TRAVEL LTD,1011705550,233.03,Travel and Subsistence Week 11,BD1 5HQ,ADMIN
FOOD STANDARDS AGENCY - Westminster,FOOD STANDARDS AGENCY - Westminster,2018-03-29,EXP - PURCHASE OF GOODS/SERVICES - SUBSISTENCE,Non Meat Field Ops,REDFERN TRAVEL LTD,1011705550,231.18,Travel and Subsistence Week 11,BD1 5HQ,PROGRAMME
FOOD STANDARDS AGENCY - Westminster,FOOD STANDARDS AGENCY - Westminster,2018-03-20,EXP - PURCHASE OF GOODS/SERVICES - RAIL TRAVEL,EU Exit,REDFERN TRAVEL LTD,1011705444,228.6,Travel and Subsistence Week 10,BD1 5HQ,ADMIN
FOOD STANDARDS AGENCY - Westminster,FOOD STANDARDS AGENCY - Westminster,2018-03-13,EXP - PURCHASE OF GOODS/SERVICES - SUBSISTENCE,IT Strategy,REDFERN TRAVEL LTD,1011705351,225.2,Travel and Subsistence Week 8,BD1 5HQ,ADMIN
FOOD STANDARDS AGENCY - Westminster,FOOD STANDARDS AGENCY - Westminster,2018-03-29,EXP - PURCHASE OF GOODS/SERVICES - RAIL TRAVEL,Allergens,REDFERN TRAVEL LTD,1011705550,224.05,Travel and Subsistence Week 11,BD1 5HQ,ADMIN
FOOD STANDARDS AGENCY - Westminster,FOOD STANDARDS AGENCY - Westminster,2018-03-13,EXP - PURCHASE OF GOODS/SERVICES - RAIL TRAVEL,Non Meat Field Ops,REDFERN TRAVEL LTD,1011705351,222.4,Travel and Subsistence Week 8,BD1 5HQ,PROGRAMME
FOOD STANDARDS AGENCY - Westminster,FOOD STANDARDS AGENCY - Westminster,2018-03-20,EXP - PURCHASE OF GOODS/SERVICES - RAIL TRAVEL,Allergens,REDFERN TRAVEL LTD,1011705444,220.35,Travel and Subsistence Week 10,BD1 5HQ,ADMIN
FOOD STANDARDS AGENCY - Westminster,FOOD STANDARDS AGENCY - Westminster,2018-03-13,EXP - PURCHASE OF GOODS/SERVICES - AIR TRAVEL,Additives,REDFERN TRAVEL LTD,1011705351,218.87,Travel and Subsistence Week 8,BD1 5HQ,ADMIN
FOOD STANDARDS AGENCY - Westminster,FOOD STANDARDS AGENCY - Westminster,2018-03-15,EXP - PURCHASE OF GOODS/SERVICES - AIR TRAVEL,Comms Directors Office,REDFERN TRAVEL LTD,1011705401,218.18,Travel and Subsistence Week 9,BD1 5HQ,ADMIN
FOOD STANDARDS AGENCY - Westminster,FOOD STANDARDS AGENCY - Westminster,2018-03-13,EXP - PURCHASE OF GOODS/SERVICES -  FOREIGN AIR TRAVEL,Operational Delivery,REDFERN TRAVEL LTD,1011705351,218,Travel and Subsistence Week 8,BD1 5HQ,PROGRAMME
FOOD STANDARDS AGENCY - Westminster,FOOD STANDARDS AGENCY - Westminster,2018-03-29,EXP - PURCHASE OF GOODS/SERVICES - RAIL TRAVEL,IT Service Delivery,REDFERN TRAVEL LTD,1011705550,216.15,Travel and Subsistence Week 11,BD1 5HQ,ADMIN
FOOD STANDARDS AGENCY - Westminster,FOOD STANDARDS AGENCY - Westminster,2018-03-20,EXP - PURCHASE OF GOODS/SERVICES - SUBSISTENCE,East 2,REDFERN TRAVEL LTD,1011705444,214.2,Travel and Subsistence Week 10,BD1 5HQ,PROGRAMME
FOOD STANDARDS AGENCY - Westminster,FOOD STANDARDS AGENCY - Westminster,2018-03-29,EXP - PURCHASE OF GOODS/SERVICES - SUBSISTENCE,Wales and West 4 ,REDFERN TRAVEL LTD,1011705550,208.92,Travel and Subsistence Week 11,BD1 5HQ,PROGRAMME
FOOD STANDARDS AGENCY - Westminster,FOOD STANDARDS AGENCY - Westminster,2018-03-20,EXP - PURCHASE OF GOODS/SERVICES - SUBSISTENCE,North 1,REDFERN TRAVEL LTD,1011705444,208.58,Travel and Subsistence Week 10,BD1 5HQ,PROGRAMME
FOOD STANDARDS AGENCY - Westminster,FOOD STANDARDS AGENCY - Westminster,2018-03-20,EXP - PURCHASE OF GOODS/SERVICES - FOREIGN SUBSISTENCE,Contaminants HoD,REDFERN TRAVEL LTD,1011705444,208.38,Travel and Subsistence Week 10,BD1 5HQ,ADMIN
FOOD STANDARDS AGENCY - Westminster,FOOD STANDARDS AGENCY - Westminster,2018-03-12,EXP - PURCHASE OF GOODS/SERVICES - TELECOMS - TELEPHONE,IT Service Delivery,EXPONENTIAL E LTD,1011705330,207.27,Year 2 - Operate Charge - London Clive House SW1H 9EX 1Gb/1Gb,E1 8EU,Admin
FOOD STANDARDS AGENCY - Westminster,FOOD STANDARDS AGENCY - Westminster,2018-03-13,EXP - PURCHASE OF GOODS/SERVICES - AIR TRAVEL,Operational Delivery,REDFERN TRAVEL LTD,1011705351,201.59,Travel and Subsistence Week 8,BD1 5HQ,PROGRAMME
FOOD STANDARDS AGENCY - Westminster,FOOD STANDARDS AGENCY - Westminster,2018-03-12,EXP - PURCHASE OF GOODS/SERVICES - TELECOMS - TELEPHONE,IT Service Delivery,EXPONENTIAL E LTD,1011705330,199.21,Year 2 - Operate Charge - Belfast BT1 3BG 100Mb/1Gb,E1 8EU,Admin
FOOD STANDARDS AGENCY - Westminster,FOOD STANDARDS AGENCY - Westminster,2018-03-15,EXP - PURCHASE OF GOODS/SERVICES - AIR TRAVEL,Additives,REDFERN TRAVEL LTD,1011705401,199.16,Travel and Subsistence Week 9,BD1 5HQ,ADMIN
FOOD STANDARDS AGENCY - Westminster,FOOD STANDARDS AGENCY - Westminster,2018-03-15,EXP - PURCHASE OF GOODS/SERVICES - AIR TRAVEL,Regulatory & International,REDFERN TRAVEL LTD,1011705401,199.16,Travel and Subsistence Week 9,BD1 5HQ,ADMIN
FOOD STANDARDS AGENCY - Westminster,FOOD STANDARDS AGENCY - Westminster,2018-03-20,EXP - PURCHASE OF GOODS/SERVICES - RAIL TRAVEL,Chief Scientist,REDFERN TRAVEL LTD,1011705444,198.8,Travel and Subsistence Week 10,BD1 5HQ,ADMIN
FOOD STANDARDS AGENCY - Westminster,FOOD STANDARDS AGENCY - Westminster,2018-03-15,EXP - PURCHASE OF GOODS/SERVICES - SUBSISTENCE,IT Information & Knowledge Management,REDFERN TRAVEL LTD,1011705401,198.2,Travel and Subsistence Week 9,BD1 5HQ,ADMIN
FOOD STANDARDS AGENCY - Westminster,FOOD STANDARDS AGENCY - Westminster,2018-03-13,EXP - PURCHASE OF GOODS/SERVICES - SUBSISTENCE,Wales and West 4 ,REDFERN TRAVEL LTD,1011705351,197.81,Travel and Subsistence Week 8,BD1 5HQ,PROGRAMME
FOOD STANDARDS AGENCY - Westminster,FOOD STANDARDS AGENCY - Westminster,2018-03-20,EXP - PURCHASE OF GOODS/SERVICES - SUBSISTENCE,Regulating our Future,REDFERN TRAVEL LTD,1011705444,194.71,Travel and Subsistence Week 10,BD1 5HQ,ADMIN
FOOD STANDARDS AGENCY - Westminster,FOOD STANDARDS AGENCY - Westminster,2018-03-15,EXP - PURCHASE OF GOODS/SERVICES - RAIL TRAVEL,Comms Directors Office,REDFERN TRAVEL LTD,1011705401,192.6,Travel and Subsistence Week 9,BD1 5HQ,ADMIN
FOOD STANDARDS AGENCY - Westminster,FOOD STANDARDS AGENCY - Westminster,2018-03-13,EXP - PURCHASE OF GOODS/SERVICES - RAIL TRAVEL,Internal Audit,REDFERN TRAVEL LTD,1011705351,192.5,Travel and Subsistence Week 8,BD1 5HQ,ADMIN
FOOD STANDARDS AGENCY - Westminster,FOOD STANDARDS AGENCY - Westminster,2018-03-20,EXP - PURCHASE OF GOODS/SERVICES - RAIL TRAVEL,Wales and West 1 (Wales),REDFERN TRAVEL LTD,1011705444,191.8,Travel and Subsistence Week 10,BD1 5HQ,PROGRAMME
FOOD STANDARDS AGENCY - Westminster,FOOD STANDARDS AGENCY - Westminster,2018-03-29,EXP - PURCHASE OF GOODS/SERVICES - AIR TRAVEL,Regulatory & International,REDFERN TRAVEL LTD,1011705550,190.66,Travel and Subsistence Week 11,BD1 5HQ,ADMIN
FOOD STANDARDS AGENCY - Westminster,FOOD STANDARDS AGENCY - Westminster,2018-03-15,EXP - PURCHASE OF GOODS/SERVICES - RAIL TRAVEL,North 4,REDFERN TRAVEL LTD,1011705401,188.9,Travel and Subsistence Week 9,BD1 5HQ,PROGRAMME
FOOD STANDARDS AGENCY - Westminster,FOOD STANDARDS AGENCY - Westminster,2018-03-16,EXP - SHORT-TERM CONTRACT & AGENCY STAFF,IT Service Delivery,CAPITA BUSINESS SERVICES LTD,1011705410,186.53,Short Term Contract and Agency Staff,SL6 1DP,Admin
FOOD STANDARDS AGENCY - Westminster,FOOD STANDARDS AGENCY - Westminster,2018-03-20,EXP - PURCHASE OF GOODS/SERVICES - RAIL TRAVEL,IT Service Delivery,REDFERN TRAVEL LTD,1011705444,186.4,Travel and Subsistence Week 10,BD1 5HQ,ADMIN
FOOD STANDARDS AGENCY - Westminster,FOOD STANDARDS AGENCY - Westminster,2018-03-13,EXP - PURCHASE OF GOODS/SERVICES - RAIL TRAVEL,Allergens,REDFERN TRAVEL LTD,1011705351,186.1,Travel and Subsistence Week 8,BD1 5HQ,ADMIN
FOOD STANDARDS AGENCY - Westminster,FOOD STANDARDS AGENCY - Westminster,2018-03-20,EXP - PURCHASE OF GOODS/SERVICES - AIR TRAVEL,Regulatory & International,REDFERN TRAVEL LTD,1011705444,186,Travel and Subsistence Week 10,BD1 5HQ,ADMIN
FOOD STANDARDS AGENCY - Westminster,FOOD STANDARDS AGENCY - Westminster,2018-03-20,EXP - PURCHASE OF GOODS/SERVICES - RAIL TRAVEL,Contaminants Policy & Strategy Unit,REDFERN TRAVEL LTD,1011705444,185.4,Travel and Subsistence Week 10,BD1 5HQ,ADMIN
FOOD STANDARDS AGENCY - Westminster,FOOD STANDARDS AGENCY - Westminster,2018-03-20,EXP - PURCHASE OF GOODS/SERVICES - SUBSISTENCE,EU Exit,REDFERN TRAVEL LTD,1011705444,183.09,Travel and Subsistence Week 10,BD1 5HQ,ADMIN
FOOD STANDARDS AGENCY - Westminster,FOOD STANDARDS AGENCY - Westminster,2018-03-13,EXP - PURCHASE OF GOODS/SERVICES - RAIL TRAVEL,Procurement,REDFERN TRAVEL LTD,1011705351,182.3,Travel and Subsistence Week 8,BD1 5HQ,ADMIN
FOOD STANDARDS AGENCY - Westminster,FOOD STANDARDS AGENCY - Westminster,2018-03-15,EXP - PURCHASE OF GOODS/SERVICES - SUBSISTENCE,Contaminants HoD,REDFERN TRAVEL LTD,1011705401,182.26,Travel and Subsistence Week 9,BD1 5HQ,ADMIN
FOOD STANDARDS AGENCY - Westminster,FOOD STANDARDS AGENCY - Westminster,2018-03-29,EXP - PURCHASE OF GOODS/SERVICES - RAIL TRAVEL,Wales and West 2 (England),REDFERN TRAVEL LTD,1011705550,182.15,Travel and Subsistence Week 11,BD1 5HQ,PROGRAMME
FOOD STANDARDS AGENCY - Westminster,FOOD STANDARDS AGENCY - Westminster,2018-03-15,EXP - PURCHASE OF GOODS/SERVICES - RAIL TRAVEL,Legal Branch A & Investigations,REDFERN TRAVEL LTD,1011705401,178.6,Travel and Subsistence Week 9,BD1 5HQ,ADMIN
FOOD STANDARDS AGENCY - Westminster,FOOD STANDARDS AGENCY - Westminster,2018-03-13,EXP - PURCHASE OF GOODS/SERVICES - AIR TRAVEL,Food Hygiene Policy Branch,REDFERN TRAVEL LTD,1011705351,178,Travel and Subsistence Week 8,BD1 5HQ,ADMIN
FOOD STANDARDS AGENCY - Westminster,FOOD STANDARDS AGENCY - Westminster,2018-03-13,EXP - PURCHASE OF GOODS/SERVICES - SUBSISTENCE,Wales and West 1 (England),REDFERN TRAVEL LTD,1011705351,174.1,Travel and Subsistence Week 8,BD1 5HQ,PROGRAMME
FOOD STANDARDS AGENCY - Westminster,FOOD STANDARDS AGENCY - Westminster,2018-03-20,EXP - PURCHASE OF GOODS/SERVICES - SUBSISTENCE,Organisational Development,REDFERN TRAVEL LTD,1011705444,171.85,Travel and Subsistence Week 10,BD1 5HQ,ADMIN
FOOD STANDARDS AGENCY - Westminster,FOOD STANDARDS AGENCY - Westminster,2018-03-20,EXP - PURCHASE OF GOODS/SERVICES - RAIL TRAVEL,East 4,REDFERN TRAVEL LTD,1011705444,170.3,Travel and Subsistence Week 10,BD1 5HQ,PROGRAMME
FOOD STANDARDS AGENCY - Westminster,FOOD STANDARDS AGENCY - Westminster,2018-03-13,EXP - PURCHASE OF GOODS/SERVICES -  FOREIGN AIR TRAVEL,Food Crime Unit - Admin,REDFERN TRAVEL LTD,1011705351,169.9,Travel and Subsistence Week 8,BD1 5HQ,ADMIN
FOOD STANDARDS AGENCY - Westminster,FOOD STANDARDS AGENCY - Westminster,2018-03-29,EXP - PURCHASE OF GOODS/SERVICES - RAIL TRAVEL,Chief Scientist,REDFERN TRAVEL LTD,1011705550,168.8,Travel and Subsistence Week 11,BD1 5HQ,ADMIN
FOOD STANDARDS AGENCY - Westminster,FOOD STANDARDS AGENCY - Westminster,2018-03-15,EXP - PURCHASE OF GOODS/SERVICES - SUBSISTENCE,Chief Executive & Private Office,REDFERN TRAVEL LTD,1011705401,167.2,Travel and Subsistence Week 9,BD1 5HQ,ADMIN
FOOD STANDARDS AGENCY - Westminster,FOOD STANDARDS AGENCY - Westminster,2018-03-15,EXP - PURCHASE OF GOODS/SERVICES - SUBSISTENCE,Legal Branch A & Investigations,REDFERN TRAVEL LTD,1011705401,166.7,Travel and Subsistence Week 9,BD1 5HQ,ADMIN
FOOD STANDARDS AGENCY - Westminster,FOOD STANDARDS AGENCY - Westminster,2018-03-12,EXP - PURCHASE OF GOODS/SERVICES - TELECOMS - TELEPHONE,IT Service Delivery,EXPONENTIAL E LTD,1011705330,166.44,PO NO 11770002288,E1 8EU,Admin
FOOD STANDARDS AGENCY - Westminster,FOOD STANDARDS AGENCY - Westminster,2018-03-20,EXP - PURCHASE OF GOODS/SERVICES - AIR TRAVEL,Contaminants HoD,REDFERN TRAVEL LTD,1011705444,166.31,Travel and Subsistence Week 10,BD1 5HQ,ADMIN
FOOD STANDARDS AGENCY - Westminster,FOOD STANDARDS AGENCY - Westminster,2018-03-13,EXP - PURCHASE OF GOODS/SERVICES - AIR TRAVEL,Food Incidents & Resilience - Prog,REDFERN TRAVEL LTD,1011705351,166.26,Travel and Subsistence Week 8,BD1 5HQ,PROGRAMME
FOOD STANDARDS AGENCY - Westminster,FOOD STANDARDS AGENCY - Westminster,2018-03-16,EXP - SHORT-TERM CONTRACT & AGENCY STAFF,IT Service Delivery,CAPITA BUSINESS SERVICES LTD,1011705410,164.76,Short Term Contract and Agency Staff,SL6 1DP,Admin
FOOD STANDARDS AGENCY - Westminster,FOOD STANDARDS AGENCY - Westminster,2018-03-29,EXP - PURCHASE OF GOODS/SERVICES - OTHER TRAVEL,NI Food Safety,REDFERN TRAVEL LTD,1011705550,162.95,Travel and Subsistence Week 11,BD1 5HQ,ADMIN
FOOD STANDARDS AGENCY - Westminster,FOOD STANDARDS AGENCY - Westminster,2018-03-29,EXP - PURCHASE OF GOODS/SERVICES - RAIL TRAVEL,Microbiological Food Safety Branch,REDFERN TRAVEL LTD,1011705550,162.2,Travel and Subsistence Week 11,BD1 5HQ,ADMIN
FOOD STANDARDS AGENCY - Westminster,FOOD STANDARDS AGENCY - Westminster,2018-03-13,EXP - PURCHASE OF GOODS/SERVICES - RAIL TRAVEL,Contaminants Policy & Strategy Unit,REDFERN TRAVEL LTD,1011705351,161.5,Travel and Subsistence Week 8,BD1 5HQ,ADMIN
FOOD STANDARDS AGENCY - Westminster,FOOD STANDARDS AGENCY - Westminster,2018-03-16,EXP - SHORT-TERM CONTRACT & AGENCY STAFF,Planning and Performance,CAPITA BUSINESS SERVICES LTD,1011705410,161.26,Short Term Contract and Agency Staff,SL6 1DP,Admin
FOOD STANDARDS AGENCY - Westminster,FOOD STANDARDS AGENCY - Westminster,2018-03-20,EXP - PURCHASE OF GOODS/SERVICES - AIR TRAVEL,Chief Scientist,REDFERN TRAVEL LTD,1011705444,160.64,Travel and Subsistence Week 10,BD1 5HQ,ADMIN
FOOD STANDARDS AGENCY - Westminster,FOOD STANDARDS AGENCY - Westminster,2018-03-20,EXP - PURCHASE OF GOODS/SERVICES - SUBSISTENCE,Internal Audit,REDFERN TRAVEL LTD,1011705444,159.82,Travel and Subsistence Week 10,BD1 5HQ,ADMIN
FOOD STANDARDS AGENCY - Westminster,FOOD STANDARDS AGENCY - Westminster,2018-03-13,EXP - PURCHASE OF GOODS/SERVICES - RAIL TRAVEL,Resilience - Admin,REDFERN TRAVEL LTD,1011705351,159.2,Travel and Subsistence Week 8,BD1 5HQ,ADMIN
FOOD STANDARDS AGENCY - Westminster,FOOD STANDARDS AGENCY - Westminster,2018-03-13,EXP - PURCHASE OF GOODS/SERVICES - FOREIGN RAIL TRAVEL,Scientific Methods & Laboratory Policy,REDFERN TRAVEL LTD,1011705351,157.32,Travel and Subsistence Week 8,BD1 5HQ,ADMIN
FOOD STANDARDS AGENCY - Westminster,FOOD STANDARDS AGENCY - Westminster,2018-03-15,EXP - PURCHASE OF GOODS/SERVICES -  FOREIGN AIR TRAVEL,Microbiological Food Safety Branch,REDFERN TRAVEL LTD,1011705401,157,Travel and Subsistence Week 9,BD1 5HQ,ADMIN
FOOD STANDARDS AGENCY - Westminster,FOOD STANDARDS AGENCY - Westminster,2018-03-29,EXP - PURCHASE OF GOODS/SERVICES - RAIL TRAVEL,North 4,REDFERN TRAVEL LTD,1011705550,155.5,Travel and Subsistence Week 11,BD1 5HQ,PROGRAMME
FOOD STANDARDS AGENCY - Westminster,FOOD STANDARDS AGENCY - Westminster,2018-03-15,EXP - PURCHASE OF GOODS/SERVICES - RAIL TRAVEL,Digital,REDFERN TRAVEL LTD,1011705401,154.9,Travel and Subsistence Week 9,BD1 5HQ,ADMIN
FOOD STANDARDS AGENCY - Westminster,FOOD STANDARDS AGENCY - Westminster,2018-03-29,EXP - PURCHASE OF GOODS/SERVICES - SUBSISTENCE,Wales and West 1 (England),REDFERN TRAVEL LTD,1011705550,153.19,Travel and Subsistence Week 11,BD1 5HQ,PROGRAMME
FOOD STANDARDS AGENCY - Westminster,FOOD STANDARDS AGENCY - Westminster,2018-03-20,EXP - PURCHASE OF GOODS/SERVICES -  FOREIGN AIR TRAVEL,Regulatory Delivery ,REDFERN TRAVEL LTD,1011705444,153,Travel and Subsistence Week 10,BD1 5HQ,ADMIN
FOOD STANDARDS AGENCY - Westminster,FOOD STANDARDS AGENCY - Westminster,2018-03-20,EXP - PURCHASE OF GOODS/SERVICES -  FOREIGN AIR TRAVEL,Food Production Branch,REDFERN TRAVEL LTD,1011705444,153,Travel and Subsistence Week 10,BD1 5HQ,ADMIN
FOOD STANDARDS AGENCY - Westminster,FOOD STANDARDS AGENCY - Westminster,2018-03-15,EXP - PURCHASE OF GOODS/SERVICES -  FOREIGN AIR TRAVEL,Additives,REDFERN TRAVEL LTD,1011705401,153,Travel and Subsistence Week 9,BD1 5HQ,ADMIN
FOOD STANDARDS AGENCY - Westminster,FOOD STANDARDS AGENCY - Westminster,2018-03-15,EXP - PURCHASE OF GOODS/SERVICES - SUBSISTENCE,IT Strategy,REDFERN TRAVEL LTD,1011705401,152.7,Travel and Subsistence Week 9,BD1 5HQ,ADMIN
FOOD STANDARDS AGENCY - Westminster,FOOD STANDARDS AGENCY - Westminster,2018-03-15,EXP - PURCHASE OF GOODS/SERVICES - SUBSISTENCE,Organisational Development,REDFERN TRAVEL LTD,1011705401,152.3,Travel and Subsistence Week 9,BD1 5HQ,ADMIN
FOOD STANDARDS AGENCY - Westminster,FOOD STANDARDS AGENCY - Westminster,2018-03-13,EXP - PURCHASE OF GOODS/SERVICES - FOREIGN SUBSISTENCE,EU Regulatory Reform Branch,REDFERN TRAVEL LTD,1011705351,150.64,Travel and Subsistence Week 8,BD1 5HQ,ADMIN
FOOD STANDARDS AGENCY - Westminster,FOOD STANDARDS AGENCY - Westminster,2018-03-13,EXP - PURCHASE OF GOODS/SERVICES - RAIL TRAVEL,Wales and West 2 (England),REDFERN TRAVEL LTD,1011705351,149.8,Travel and Subsistence Week 8,BD1 5HQ,PROGRAMME
FOOD STANDARDS AGENCY - Westminster,FOOD STANDARDS AGENCY - Westminster,2018-03-12,EXP - PURCHASE OF GOODS/SERVICES - TELECOMS - TELEPHONE,IT Service Delivery,EXPONENTIAL E LTD,1011705330,149.42,Year 2 - Operate Charge - Cardiff CF10 1EW 100Mb/1Gb,E1 8EU,Admin
FOOD STANDARDS AGENCY - Westminster,FOOD STANDARDS AGENCY - Westminster,2018-03-29,EXP - PURCHASE OF GOODS/SERVICES - SUBSISTENCE,Internal Audit,REDFERN TRAVEL LTD,1011705550,148.2,Travel and Subsistence Week 11,BD1 5HQ,ADMIN
FOOD STANDARDS AGENCY - Westminster,FOOD STANDARDS AGENCY - Westminster,2018-03-13,EXP - PURCHASE OF GOODS/SERVICES - SUBSISTENCE,East 1,REDFERN TRAVEL LTD,1011705351,148.2,Travel and Subsistence Week 8,BD1 5HQ,PROGRAMME
FOOD STANDARDS AGENCY - Westminster,FOOD STANDARDS AGENCY - Westminster,2018-03-13,EXP - PURCHASE OF GOODS/SERVICES - FOREIGN SUBSISTENCE,Contaminants HoD,REDFERN TRAVEL LTD,1011705351,145.3,Travel and Subsistence Week 8,BD1 5HQ,ADMIN
FOOD STANDARDS AGENCY - Westminster,FOOD STANDARDS AGENCY - Westminster,2018-03-13,EXP - PURCHASE OF GOODS/SERVICES - SUBSISTENCE,East 2,REDFERN TRAVEL LTD,1011705351,145.2,Travel and Subsistence Week 8,BD1 5HQ,PROGRAMME
FOOD STANDARDS AGENCY - Westminster,FOOD STANDARDS AGENCY - Westminster,2018-03-29,EXP - PURCHASE OF GOODS/SERVICES - RAIL TRAVEL,Wales and West 1 (England),REDFERN TRAVEL LTD,1011705550,143.7,Travel and Subsistence Week 11,BD1 5HQ,PROGRAMME
FOOD STANDARDS AGENCY - Westminster,FOOD STANDARDS AGENCY - Westminster,2018-03-13,EXP - PURCHASE OF GOODS/SERVICES - SUBSISTENCE,Animal Feed Branch,REDFERN TRAVEL LTD,1011705351,143.46,Travel and Subsistence Week 8,BD1 5HQ,ADMIN
FOOD STANDARDS AGENCY - Westminster,FOOD STANDARDS AGENCY - Westminster,2018-03-13,EXP - PURCHASE OF GOODS/SERVICES - RAIL TRAVEL,Analysis & Research Branch,REDFERN TRAVEL LTD,1011705351,141,Travel and Subsistence Week 8,BD1 5HQ,ADMIN
FOOD STANDARDS AGENCY - Westminster,FOOD STANDARDS AGENCY - Westminster,2018-03-20,EXP - PURCHASE OF GOODS/SERVICES - SUBSISTENCE,Wales and West 3 ,REDFERN TRAVEL LTD,1011705444,139.62,Travel and Subsistence Week 10,BD1 5HQ,PROGRAMME
FOOD STANDARDS AGENCY - Westminster,FOOD STANDARDS AGENCY - Westminster,2018-03-15,EXP - PURCHASE OF GOODS/SERVICES - SUBSISTENCE,North 2,REDFERN TRAVEL LTD,1011705401,139.2,Travel and Subsistence Week 9,BD1 5HQ,PROGRAMME
FOOD STANDARDS AGENCY - Westminster,FOOD STANDARDS AGENCY - Westminster,2018-03-15,EXP - PURCHASE OF GOODS/SERVICES - RAIL TRAVEL,Contaminants HoD,REDFERN TRAVEL LTD,1011705401,139,Travel and Subsistence Week 9,BD1 5HQ,ADMIN
FOOD STANDARDS AGENCY - Westminster,FOOD STANDARDS AGENCY - Westminster,2018-03-29,EXP - PURCHASE OF GOODS/SERV - SUPPORT - IT SUPPORT SERVICES,IT Strategy,COMPUTACENTER UK LTD,1011705548,134.7,"C18031516183240392, C18031516183240394",AL10 9TW,Admin
FOOD STANDARDS AGENCY - Westminster,FOOD STANDARDS AGENCY - Westminster,2018-03-20,EXP - PURCHASE OF GOODS/SERVICES - AIR TRAVEL,IT Information & Knowledge Management,REDFERN TRAVEL LTD,1011705444,132.66,Travel and Subsistence Week 10,BD1 5HQ,ADMIN
FOOD STANDARDS AGENCY - Westminster,FOOD STANDARDS AGENCY - Westminster,2018-03-16,EXP - SHORT-TERM CONTRACT & AGENCY STAFF,IT Service Delivery,CAPITA BUSINESS SERVICES LTD,1011705410,131.68,Short Term Contract and Agency Staff,SL6 1DP,Admin
FOOD STANDARDS AGENCY - Westminster,FOOD STANDARDS AGENCY - Westminster,2018-03-20,EXP - PURCHASE OF GOODS/SERVICES - SUBSISTENCE,Planning and Performance,REDFERN TRAVEL LTD,1011705444,131.2,Travel and Subsistence Week 10,BD1 5HQ,ADMIN
FOOD STANDARDS AGENCY - Westminster,FOOD STANDARDS AGENCY - Westminster,2018-03-13,EXP - PURCHASE OF GOODS/SERVICES - SUBSISTENCE,Food Crime Unit - Prog,REDFERN TRAVEL LTD,1011705351,130.6,Travel and Subsistence Week 8,BD1 5HQ,PROGRAMME
FOOD STANDARDS AGENCY - Westminster,FOOD STANDARDS AGENCY - Westminster,2018-03-20,EXP - PURCHASE OF GOODS/SERVICES - SUBSISTENCE,Chief Executive & Private Office,REDFERN TRAVEL LTD,1011705444,130.31,Travel and Subsistence Week 10,BD1 5HQ,ADMIN
FOOD STANDARDS AGENCY - Westminster,FOOD STANDARDS AGENCY - Westminster,2018-03-20,EXP - PURCHASE OF GOODS/SERVICES - SUBSISTENCE,Chair & Deputy Chair,REDFERN TRAVEL LTD,1011705444,130.31,Travel and Subsistence Week 10,BD1 5HQ,ADMIN
FOOD STANDARDS AGENCY - Westminster,FOOD STANDARDS AGENCY - Westminster,2018-03-20,EXP - PURCHASE OF GOODS/SERVICES - SUBSISTENCE,IT Service Delivery,REDFERN TRAVEL LTD,1011705444,127.1,Travel and Subsistence Week 10,BD1 5HQ,ADMIN
FOOD STANDARDS AGENCY - Westminster,FOOD STANDARDS AGENCY - Westminster,2018-03-20,EXP - PURCHASE OF GOODS/SERVICES -  FOREIGN AIR TRAVEL,Animal Feed Branch,REDFERN TRAVEL LTD,1011705444,126.3,Travel and Subsistence Week 10,BD1 5HQ,ADMIN
FOOD STANDARDS AGENCY - Westminster,FOOD STANDARDS AGENCY - Westminster,2018-03-15,EXP - PURCHASE OF GOODS/SERVICES - RAIL TRAVEL,Wales and West 2 (Wales),REDFERN TRAVEL LTD,1011705401,126.1,Travel and Subsistence Week 9,BD1 5HQ,PROGRAMME
FOOD STANDARDS AGENCY - Westminster,FOOD STANDARDS AGENCY - Westminster,2018-03-29,EXP - PURCHASE OF GOODS/SERVICES - SUBSISTENCE,Planning and Performance,REDFERN TRAVEL LTD,1011705550,125.4,Travel and Subsistence Week 11,BD1 5HQ,ADMIN
FOOD STANDARDS AGENCY - Westminster,FOOD STANDARDS AGENCY - Westminster,2018-03-15,EXP - PURCHASE OF GOODS/SERVICES - SUBSISTENCE,Wales and West 1 (England),REDFERN TRAVEL LTD,1011705401,125.35,Travel and Subsistence Week 9,BD1 5HQ,PROGRAMME
FOOD STANDARDS AGENCY - Westminster,FOOD STANDARDS AGENCY - Westminster,2018-03-15,EXP - PURCHASE OF GOODS/SERVICES - SUBSISTENCE,Wales and West 2 (Wales),REDFERN TRAVEL LTD,1011705401,125,Travel and Subsistence Week 9,BD1 5HQ,PROGRAMME
FOOD STANDARDS AGENCY - Westminster,FOOD STANDARDS AGENCY - Westminster,2018-03-20,EXP - PURCHASE OF GOODS/SERVICES - RAIL TRAVEL,North 2,REDFERN TRAVEL LTD,1011705444,124.1,Travel and Subsistence Week 10,BD1 5HQ,PROGRAMME
FOOD STANDARDS AGENCY - Westminster,FOOD STANDARDS AGENCY - Westminster,2018-03-20,EXP - PURCHASE OF GOODS/SERVICES - RAIL TRAVEL,Comms Directors Office,REDFERN TRAVEL LTD,1011705444,123.2,Travel and Subsistence Week 10,BD1 5HQ,ADMIN
FOOD STANDARDS AGENCY - Westminster,FOOD STANDARDS AGENCY - Westminster,2018-03-29,EXP - PURCHASE OF GOODS/SERVICES - RAIL TRAVEL,Food Crime Unit - Admin,REDFERN TRAVEL LTD,1011705550,122.9,Travel and Subsistence Week 11,BD1 5HQ,ADMIN
FOOD STANDARDS AGENCY - Westminster,FOOD STANDARDS AGENCY - Westminster,2018-03-20,EXP - PURCHASE OF GOODS/SERVICES - FOREIGN SUBSISTENCE,Food Hygiene Policy Branch,REDFERN TRAVEL LTD,1011705444,122.86,Travel and Subsistence Week 10,BD1 5HQ,ADMIN
FOOD STANDARDS AGENCY - Westminster,FOOD STANDARDS AGENCY - Westminster,2018-03-29,EXP - PURCHASE OF GOODS/SERVICES - RAIL TRAVEL,EU Regulatory Reform Branch,REDFERN TRAVEL LTD,1011705550,122.55,Travel and Subsistence Week 11,BD1 5HQ,ADMIN
FOOD STANDARDS AGENCY - Westminster,FOOD STANDARDS AGENCY - Westminster,2018-03-15,EXP - PURCHASE OF GOODS/SERVICES - SUBSISTENCE,Finance Director & Branch,REDFERN TRAVEL LTD,1011705401,122.2,Travel and Subsistence Week 9,BD1 5HQ,ADMIN
FOOD STANDARDS AGENCY - Westminster,FOOD STANDARDS AGENCY - Westminster,2018-03-20,EXP - PURCHASE OF GOODS/SERVICES - RAIL TRAVEL,North 1,REDFERN TRAVEL LTD,1011705444,122.05,Travel and Subsistence Week 10,BD1 5HQ,PROGRAMME
FOOD STANDARDS AGENCY - Westminster,FOOD STANDARDS AGENCY - Westminster,2018-03-20,EXP - PURCHASE OF GOODS/SERVICES - AIR TRAVEL,Organisational Development,REDFERN TRAVEL LTD,1011705444,120.93,Travel and Subsistence Week 10,BD1 5HQ,ADMIN
FOOD STANDARDS AGENCY - Westminster,FOOD STANDARDS AGENCY - Westminster,2018-03-15,EXP - PURCHASE OF GOODS/SERVICES - SUBSISTENCE,East 2,REDFERN TRAVEL LTD,1011705401,120.93,Travel and Subsistence Week 9,BD1 5HQ,PROGRAMME
FOOD STANDARDS AGENCY - Westminster,FOOD STANDARDS AGENCY - Westminster,2018-03-29,EXP - PURCHASE OF GOODS/SERVICES - SUBSISTENCE,Regulatory & International,REDFERN TRAVEL LTD,1011705550,119.6,Travel and Subsistence Week 11,BD1 5HQ,ADMIN
FOOD STANDARDS AGENCY - Westminster,FOOD STANDARDS AGENCY - Westminster,2018-03-29,EXP - PURCHASE OF GOODS/SERVICES - AIR TRAVEL,Digital,REDFERN TRAVEL LTD,1011705550,119.6,Travel and Subsistence Week 11,BD1 5HQ,ADMIN
FOOD STANDARDS AGENCY - Westminster,FOOD STANDARDS AGENCY - Westminster,2018-03-29,EXP - PURCHASE OF GOODS/SERVICES -  FOREIGN AIR TRAVEL,Contaminants HoD,REDFERN TRAVEL LTD,1011705550,119,Travel and Subsistence Week 11,BD1 5HQ,ADMIN
FOOD STANDARDS AGENCY - Westminster,FOOD STANDARDS AGENCY - Westminster,2018-03-13,EXP - PURCHASE OF GOODS/SERVICES - RAIL TRAVEL,North 2,REDFERN TRAVEL LTD,1011705351,118.3,Travel and Subsistence Week 8,BD1 5HQ,PROGRAMME
FOOD STANDARDS AGENCY - Westminster,FOOD STANDARDS AGENCY - Westminster,2018-03-15,EXP - PURCHASE OF GOODS/SERVICES - RAIL TRAVEL,Non Meat Field Ops,REDFERN TRAVEL LTD,1011705401,118.05,Travel and Subsistence Week 9,BD1 5HQ,PROGRAMME
FOOD STANDARDS AGENCY - Westminster,FOOD STANDARDS AGENCY - Westminster,2018-03-15,EXP - PURCHASE OF GOODS/SERVICES - RAIL TRAVEL,IT Service Delivery,REDFERN TRAVEL LTD,1011705401,116.1,Travel and Subsistence Week 9,BD1 5HQ,ADMIN
FOOD STANDARDS AGENCY - Westminster,FOOD STANDARDS AGENCY - Westminster,2018-03-15,EXP - PURCHASE OF GOODS/SERVICES - RAIL TRAVEL,East 2,REDFERN TRAVEL LTD,1011705401,114.3,Travel and Subsistence Week 9,BD1 5HQ,PROGRAMME
FOOD STANDARDS AGENCY - Westminster,FOOD STANDARDS AGENCY - Westminster,2018-03-29,EXP - PURCHASE OF GOODS/SERVICES - SUBSISTENCE,Wales and West 3 ,REDFERN TRAVEL LTD,1011705550,112.2,Travel and Subsistence Week 11,BD1 5HQ,PROGRAMME
FOOD STANDARDS AGENCY - Westminster,FOOD STANDARDS AGENCY - Westminster,2018-03-15,EXP - PURCHASE OF GOODS/SERVICES - SUBSISTENCE,Planning and Performance,REDFERN TRAVEL LTD,1011705401,112.2,Travel and Subsistence Week 9,BD1 5HQ,ADMIN
FOOD STANDARDS AGENCY - Westminster,FOOD STANDARDS AGENCY - Westminster,2018-03-20,EXP - PURCHASE OF GOODS/SERVICES - SUBSISTENCE,Digital,REDFERN TRAVEL LTD,1011705444,111.6,Travel and Subsistence Week 10,BD1 5HQ,ADMIN
FOOD STANDARDS AGENCY - Westminster,FOOD STANDARDS AGENCY - Westminster,2018-03-20,EXP - PURCHASE OF GOODS/SERVICES - RAIL TRAVEL,Wales and West 2 (Wales),REDFERN TRAVEL LTD,1011705444,111.5,Travel and Subsistence Week 10,BD1 5HQ,PROGRAMME
FOOD STANDARDS AGENCY - Westminster,FOOD STANDARDS AGENCY - Westminster,2018-03-15,EXP - PURCHASE OF GOODS/SERVICES - SUBSISTENCE,East 3,REDFERN TRAVEL LTD,1011705401,111,Travel and Subsistence Week 9,BD1 5HQ,PROGRAMME
FOOD STANDARDS AGENCY - Westminster,FOOD STANDARDS AGENCY - Westminster,2018-03-13,EXP - PURCHASE OF GOODS/SERVICES - SUBSISTENCE,Wales and West 3 ,REDFERN TRAVEL LTD,1011705351,110.79,Travel and Subsistence Week 8,BD1 5HQ,PROGRAMME
FOOD STANDARDS AGENCY - Westminster,FOOD STANDARDS AGENCY - Westminster,2018-03-13,EXP - PURCHASE OF GOODS/SERVICES - RAIL TRAVEL,East 3,REDFERN TRAVEL LTD,1011705351,110.5,Travel and Subsistence Week 8,BD1 5HQ,PROGRAMME
FOOD STANDARDS AGENCY - Westminster,FOOD STANDARDS AGENCY - Westminster,2018-03-13,EXP - PURCHASE OF GOODS/SERVICES - SUBSISTENCE,Non Meat Field Ops,REDFERN TRAVEL LTD,1011705351,109.7,Travel and Subsistence Week 8,BD1 5HQ,PROGRAMME
FOOD STANDARDS AGENCY - Westminster,FOOD STANDARDS AGENCY - Westminster,2018-03-15,EXP - PURCHASE OF GOODS/SERVICES - SUBSISTENCE,North 3,REDFERN TRAVEL LTD,1011705401,108.45,Travel and Subsistence Week 9,BD1 5HQ,PROGRAMME
FOOD STANDARDS AGENCY - Westminster,FOOD STANDARDS AGENCY - Westminster,2018-03-13,EXP - PURCHASE OF GOODS/SERVICES - AIR TRAVEL,Food Crime Unit - Admin,REDFERN TRAVEL LTD,1011705351,108,Travel and Subsistence Week 8,BD1 5HQ,ADMIN
FOOD STANDARDS AGENCY - Westminster,FOOD STANDARDS AGENCY - Westminster,2018-03-29,EXP - PURCHASE OF GOODS/SERVICES -  FOREIGN AIR TRAVEL,EU Regulatory Reform Branch,REDFERN TRAVEL LTD,1011705550,104,Travel and Subsistence Week 11,BD1 5HQ,ADMIN
FOOD STANDARDS AGENCY - Westminster,FOOD STANDARDS AGENCY - Westminster,2018-03-20,EXP - PURCHASE OF GOODS/SERVICES - FOREIGN SUBSISTENCE,EU Exit,REDFERN TRAVEL LTD,1011705444,103.81,Travel and Subsistence Week 10,BD1 5HQ,ADMIN
FOOD STANDARDS AGENCY - Westminster,FOOD STANDARDS AGENCY - Westminster,2018-03-13,EXP - PURCHASE OF GOODS/SERVICES - SUBSISTENCE,EU Exit,REDFERN TRAVEL LTD,1011705351,103.1,Travel and Subsistence Week 8,BD1 5HQ,ADMIN
FOOD STANDARDS AGENCY - Westminster,FOOD STANDARDS AGENCY - Westminster,2018-03-13,EXP - PURCHASE OF GOODS/SERVICES - SUBSISTENCE,Wales and West 1 (Wales),REDFERN TRAVEL LTD,1011705351,102.42,Travel and Subsistence Week 8,BD1 5HQ,PROGRAMME
FOOD STANDARDS AGENCY - Westminster,FOOD STANDARDS AGENCY - Westminster,2018-03-29,EXP - PURCHASE OF GOODS/SERVICES - RAIL TRAVEL,IT Strategy,REDFERN TRAVEL LTD,1011705550,101.4,Travel and Subsistence Week 11,BD1 5HQ,ADMIN
FOOD STANDARDS AGENCY - Westminster,FOOD STANDARDS AGENCY - Westminster,2018-03-13,EXP - PURCHASE OF GOODS/SERVICES - SUBSISTENCE,Chief Executive & Private Office,REDFERN TRAVEL LTD,1011705351,100.1,Travel and Subsistence Week 8,BD1 5HQ,ADMIN
FOOD STANDARDS AGENCY - Westminster,FOOD STANDARDS AGENCY - Westminster,2018-03-20,EXP - PURCHASE OF GOODS/SERVICES - FOREIGN SUBSISTENCE,Regulatory Delivery ,REDFERN TRAVEL LTD,1011705444,98.95,Travel and Subsistence Week 10,BD1 5HQ,ADMIN
FOOD STANDARDS AGENCY - Westminster,FOOD STANDARDS AGENCY - Westminster,2018-03-20,EXP - PURCHASE OF GOODS/SERVICES - SUBSISTENCE,EU Regulatory Reform Branch,REDFERN TRAVEL LTD,1011705444,96.82,Travel and Subsistence Week 10,BD1 5HQ,ADMIN
FOOD STANDARDS AGENCY - Westminster,FOOD STANDARDS AGENCY - Westminster,2018-03-13,EXP - PURCHASE OF GOODS/SERVICES - SUBSISTENCE,North 1,REDFERN TRAVEL LTD,1011705351,95.95,Travel and Subsistence Week 8,BD1 5HQ,PROGRAMME
FOOD STANDARDS AGENCY - Westminster,FOOD STANDARDS AGENCY - Westminster,2018-03-29,EXP - PURCHASE OF GOODS/SERVICES - AIR TRAVEL,Finance Director & Branch,REDFERN TRAVEL LTD,1011705550,95.34,Travel and Subsistence Week 11,BD1 5HQ,ADMIN
FOOD STANDARDS AGENCY - Westminster,FOOD STANDARDS AGENCY - Westminster,2018-03-29,EXP - PURCHASE OF GOODS/SERVICES - TAXI SERVICES,Operations Assurance ,REDFERN TRAVEL LTD,1011705550,95.03,Travel and Subsistence Week 11,BD1 5HQ,PROGRAMME
FOOD STANDARDS AGENCY - Westminster,FOOD STANDARDS AGENCY - Westminster,2018-03-12,EXP - PURCHASE OF GOODS/SERVICES  - IT MANAGEMENT AND CHANGE - IT DEVELOPMENT,IT Strategy,EXPONENTIAL E LTD,1011705330,95,New PSTN Install Setup Charge,E1 8EU,Admin
FOOD STANDARDS AGENCY - Westminster,FOOD STANDARDS AGENCY - Westminster,2018-03-20,EXP - PURCHASE OF GOODS/SERVICES - RAIL TRAVEL,Additives,REDFERN TRAVEL LTD,1011705444,91.6,Travel and Subsistence Week 10,BD1 5HQ,ADMIN
FOOD STANDARDS AGENCY - Westminster,FOOD STANDARDS AGENCY - Westminster,2018-03-15,EXP - PURCHASE OF GOODS/SERVICES - RAIL TRAVEL,Food Crime Unit - Prog,REDFERN TRAVEL LTD,1011705401,90.5,Travel and Subsistence Week 9,BD1 5HQ,PROGRAMME
FOOD STANDARDS AGENCY - Westminster,FOOD STANDARDS AGENCY - Westminster,2018-03-20,EXP - PURCHASE OF GOODS/SERVICES -  FOREIGN AIR TRAVEL,Food Hygiene Policy Branch,REDFERN TRAVEL LTD,1011705444,88,Travel and Subsistence Week 10,BD1 5HQ,ADMIN
FOOD STANDARDS AGENCY - Westminster,FOOD STANDARDS AGENCY - Westminster,2018-03-20,EXP - PURCHASE OF GOODS/SERVICES - SUBSISTENCE,Allergens,REDFERN TRAVEL LTD,1011705444,87.6,Travel and Subsistence Week 10,BD1 5HQ,ADMIN
FOOD STANDARDS AGENCY - Westminster,FOOD STANDARDS AGENCY - Westminster,2018-03-13,EXP - PURCHASE OF GOODS/SERVICES - RAIL TRAVEL,Food Crime Unit - Admin,REDFERN TRAVEL LTD,1011705351,85.65,Travel and Subsistence Week 8,BD1 5HQ,ADMIN
FOOD STANDARDS AGENCY - Westminster,FOOD STANDARDS AGENCY - Westminster,2018-03-29,EXP - PURCHASE OF GOODS/SERVICES - SUBSISTENCE,Food Hygiene Policy Branch,REDFERN TRAVEL LTD,1011705550,85.6,Travel and Subsistence Week 11,BD1 5HQ,ADMIN
FOOD STANDARDS AGENCY - Westminster,FOOD STANDARDS AGENCY - Westminster,2018-03-15,EXP - PURCHASE OF GOODS/SERVICES - SUBSISTENCE,Procurement,REDFERN TRAVEL LTD,1011705401,83.1,Travel and Subsistence Week 9,BD1 5HQ,ADMIN
FOOD STANDARDS AGENCY - Westminster,FOOD STANDARDS AGENCY - Westminster,2018-03-15,EXP - PURCHASE OF GOODS/SERVICES - SUBSISTENCE,Wales and West 3 ,REDFERN TRAVEL LTD,1011705401,78.6,Travel and Subsistence Week 9,BD1 5HQ,PROGRAMME
FOOD STANDARDS AGENCY - Westminster,FOOD STANDARDS AGENCY - Westminster,2018-03-15,EXP - PURCHASE OF GOODS/SERVICES - RAIL TRAVEL,Wales and West 3 ,REDFERN TRAVEL LTD,1011705401,78.2,Travel and Subsistence Week 9,BD1 5HQ,PROGRAMME
FOOD STANDARDS AGENCY - Westminster,FOOD STANDARDS AGENCY - Westminster,2018-03-29,EXP - PURCHASE OF GOODS/SERVICES - RAIL TRAVEL,Animal Feed Branch,REDFERN TRAVEL LTD,1011705550,77.9,Travel and Subsistence Week 11,BD1 5HQ,ADMIN
FOOD STANDARDS AGENCY - Westminster,FOOD STANDARDS AGENCY - Westminster,2018-03-20,EXP - PURCHASE OF GOODS/SERVICES - SUBSISTENCE,Chemical Risk Assessment Unit,REDFERN TRAVEL LTD,1011705444,77.85,Travel and Subsistence Week 10,BD1 5HQ,ADMIN
FOOD STANDARDS AGENCY - Westminster,FOOD STANDARDS AGENCY - Westminster,2018-03-29,EXP - PURCHASE OF GOODS/SERVICES - SUBSISTENCE,IT Strategy,REDFERN TRAVEL LTD,1011705550,77.7,Travel and Subsistence Week 11,BD1 5HQ,ADMIN
FOOD STANDARDS AGENCY - Westminster,FOOD STANDARDS AGENCY - Westminster,2018-03-13,EXP - PURCHASE OF GOODS/SERVICES - RAIL TRAVEL,North 4,REDFERN TRAVEL LTD,1011705351,77.5,Travel and Subsistence Week 8,BD1 5HQ,PROGRAMME
FOOD STANDARDS AGENCY - Westminster,FOOD STANDARDS AGENCY - Westminster,2018-03-13,EXP - PURCHASE OF GOODS/SERVICES - RAIL TRAVEL,Chemical Risk Assessment Unit,REDFERN TRAVEL LTD,1011705351,76.9,Travel and Subsistence Week 8,BD1 5HQ,ADMIN
FOOD STANDARDS AGENCY - Westminster,FOOD STANDARDS AGENCY - Westminster,2018-03-13,EXP - PURCHASE OF GOODS/SERVICES - RAIL TRAVEL,Programme and project delivery,REDFERN TRAVEL LTD,1011705351,76.1,Travel and Subsistence Week 8,BD1 5HQ,ADMIN
FOOD STANDARDS AGENCY - Westminster,FOOD STANDARDS AGENCY - Westminster,2018-03-29,EXP - PURCHASE OF GOODS/SERVICES - RAIL TRAVEL,East 3,REDFERN TRAVEL LTD,1011705550,75.4,Travel and Subsistence Week 11,BD1 5HQ,PROGRAMME
FOOD STANDARDS AGENCY - Westminster,FOOD STANDARDS AGENCY - Westminster,2018-03-15,EXP - PURCHASE OF GOODS/SERVICES - RAIL TRAVEL,Microbiological Food Safety Branch,REDFERN TRAVEL LTD,1011705401,75.4,Travel and Subsistence Week 9,BD1 5HQ,ADMIN
FOOD STANDARDS AGENCY - Westminster,FOOD STANDARDS AGENCY - Westminster,2018-03-15,EXP - PURCHASE OF GOODS/SERVICES - RAIL TRAVEL,Wales and West 1 (England),REDFERN TRAVEL LTD,1011705401,74.65,Travel and Subsistence Week 9,BD1 5HQ,PROGRAMME
FOOD STANDARDS AGENCY - Westminster,FOOD STANDARDS AGENCY - Westminster,2018-03-29,EXP - PURCHASE OF GOODS/SERVICES - OTHER TRAVEL,Organisational Development,REDFERN TRAVEL LTD,1011705550,73.98,Travel and Subsistence Week 11,BD1 5HQ,ADMIN
FOOD STANDARDS AGENCY - Westminster,FOOD STANDARDS AGENCY - Westminster,2018-03-13,EXP - PURCHASE OF GOODS/SERVICES - RAIL TRAVEL,Additives,REDFERN TRAVEL LTD,1011705351,73,Travel and Subsistence Week 8,BD1 5HQ,ADMIN
FOOD STANDARDS AGENCY - Westminster,FOOD STANDARDS AGENCY - Westminster,2018-03-15,EXP - PURCHASE OF GOODS/SERVICES - RAIL TRAVEL,Allergens,REDFERN TRAVEL LTD,1011705401,72,Travel and Subsistence Week 9,BD1 5HQ,ADMIN
FOOD STANDARDS AGENCY - Westminster,FOOD STANDARDS AGENCY - Westminster,2018-03-20,EXP - PURCHASE OF GOODS/SERVICES - FOREIGN SUBSISTENCE,Internal Audit,REDFERN TRAVEL LTD,1011705444,71.9,Travel and Subsistence Week 10,BD1 5HQ,ADMIN
FOOD STANDARDS AGENCY - Westminster,FOOD STANDARDS AGENCY - Westminster,2018-03-13,EXP - PURCHASE OF GOODS/SERVICES - SUBSISTENCE,Organisational Development,REDFERN TRAVEL LTD,1011705351,71.35,Travel and Subsistence Week 8,BD1 5HQ,ADMIN
FOOD STANDARDS AGENCY - Westminster,FOOD STANDARDS AGENCY - Westminster,2018-03-13,EXP - PURCHASE OF GOODS/SERVICES - AIR TRAVEL,Food Crime Unit - Prog,REDFERN TRAVEL LTD,1011705351,71.33,Travel and Subsistence Week 8,BD1 5HQ,PROGRAMME
FOOD STANDARDS AGENCY - Westminster,FOOD STANDARDS AGENCY - Westminster,2018-03-20,EXP - PURCHASE OF GOODS/SERVICES - SUBSISTENCE,Food Crime Unit - Prog,REDFERN TRAVEL LTD,1011705444,69.6,Travel and Subsistence Week 10,BD1 5HQ,PROGRAMME
FOOD STANDARDS AGENCY - Westminster,FOOD STANDARDS AGENCY - Westminster,2018-03-29,EXP - PURCHASE OF GOODS/SERVICES - OTHER TRAVEL,Contaminants HoD,REDFERN TRAVEL LTD,1011705550,69,Travel and Subsistence Week 11,BD1 5HQ,ADMIN
FOOD STANDARDS AGENCY - Westminster,FOOD STANDARDS AGENCY - Westminster,2018-03-29,EXP - PURCHASE OF GOODS/SERVICES - AIR TRAVEL,Chief Executive & Private Office,REDFERN TRAVEL LTD,1011705550,68.16,Travel and Subsistence Week 11,BD1 5HQ,ADMIN
FOOD STANDARDS AGENCY - Westminster,FOOD STANDARDS AGENCY - Westminster,2018-03-20,EXP - PURCHASE OF GOODS/SERVICES - AIR TRAVEL,Finance Director & Branch,REDFERN TRAVEL LTD,1011705444,67.1,Travel and Subsistence Week 10,BD1 5HQ,ADMIN
FOOD STANDARDS AGENCY - Westminster,FOOD STANDARDS AGENCY - Westminster,2018-03-13,EXP - PURCHASE OF GOODS/SERVICES - RAIL TRAVEL,IT Strategy,REDFERN TRAVEL LTD,1011705351,66.5,Travel and Subsistence Week 8,BD1 5HQ,ADMIN
FOOD STANDARDS AGENCY - Westminster,FOOD STANDARDS AGENCY - Westminster,2018-03-29,EXP - PURCHASE OF GOODS/SERVICES - SUBSISTENCE,Food Crime Unit - Admin,REDFERN TRAVEL LTD,1011705550,66.2,Travel and Subsistence Week 11,BD1 5HQ,ADMIN
FOOD STANDARDS AGENCY - Westminster,FOOD STANDARDS AGENCY - Westminster,2018-03-20,EXP - PURCHASE OF GOODS/SERVICES - RAIL TRAVEL,Animal Feed Branch,REDFERN TRAVEL LTD,1011705444,60.2,Travel and Subsistence Week 10,BD1 5HQ,ADMIN
FOOD STANDARDS AGENCY - Westminster,FOOD STANDARDS AGENCY - Westminster,2018-03-15,EXP - PURCHASE OF GOODS/SERVICES - SUBSISTENCE,East 4,REDFERN TRAVEL LTD,1011705401,59.6,Travel and Subsistence Week 9,BD1 5HQ,PROGRAMME
FOOD STANDARDS AGENCY - Westminster,FOOD STANDARDS AGENCY - Westminster,2018-03-13,EXP - PURCHASE OF GOODS/SERVICES - SUBSISTENCE,North 2,REDFERN TRAVEL LTD,1011705351,58.6,Travel and Subsistence Week 8,BD1 5HQ,PROGRAMME
FOOD STANDARDS AGENCY - Westminster,FOOD STANDARDS AGENCY - Westminster,2018-03-20,EXP - PURCHASE OF GOODS/SERVICES - SUBSISTENCE,Procurement,REDFERN TRAVEL LTD,1011705444,58.35,Travel and Subsistence Week 10,BD1 5HQ,ADMIN
FOOD STANDARDS AGENCY - Westminster,FOOD STANDARDS AGENCY - Westminster,2018-03-13,EXP - PURCHASE OF GOODS/SERVICES - AIR TRAVEL,Non Meat Field Ops,REDFERN TRAVEL LTD,1011705351,56.58,Travel and Subsistence Week 8,BD1 5HQ,PROGRAMME
FOOD STANDARDS AGENCY - Westminster,FOOD STANDARDS AGENCY - Westminster,2018-03-29,EXP - PURCHASE OF GOODS/SERVICES - RAIL TRAVEL,Imports & Exports Team (Admin),REDFERN TRAVEL LTD,1011705550,56.5,Travel and Subsistence Week 11,BD1 5HQ,ADMIN
FOOD STANDARDS AGENCY - Westminster,FOOD STANDARDS AGENCY - Westminster,2018-03-15,EXP - PURCHASE OF GOODS/SERVICES - RAIL TRAVEL,Wales and West 1 (Wales),REDFERN TRAVEL LTD,1011705401,56.2,Travel and Subsistence Week 9,BD1 5HQ,PROGRAMME
FOOD STANDARDS AGENCY - Westminster,FOOD STANDARDS AGENCY - Westminster,2018-03-15,EXP - PURCHASE OF GOODS/SERVICES - AIR TRAVEL,Analysis & Research Branch,REDFERN TRAVEL LTD,1011705401,55.22,Travel and Subsistence Week 9,BD1 5HQ,ADMIN
FOOD STANDARDS AGENCY - Westminster,FOOD STANDARDS AGENCY - Westminster,2018-03-20,EXP - PURCHASE OF GOODS/SERVICES - SUBSISTENCE,North 3,REDFERN TRAVEL LTD,1011705444,54.85,Travel and Subsistence Week 10,BD1 5HQ,PROGRAMME
FOOD STANDARDS AGENCY - Westminster,FOOD STANDARDS AGENCY - Westminster,2018-03-16,EXP - SHORT-TERM CONTRACT & AGENCY STAFF,IT Service Delivery,CAPITA BUSINESS SERVICES LTD,1011705410,54,Short Term Contract and Agency Staff,SL6 1DP,Admin
FOOD STANDARDS AGENCY - Westminster,FOOD STANDARDS AGENCY - Westminster,2018-03-15,EXP - PURCHASE OF GOODS/SERVICES - RAIL TRAVEL,Chief Executive & Private Office,REDFERN TRAVEL LTD,1011705401,54,Travel and Subsistence Week 9,BD1 5HQ,ADMIN
FOOD STANDARDS AGENCY - Westminster,FOOD STANDARDS AGENCY - Westminster,2018-03-29,EXP - PURCHASE OF GOODS/SERVICES - SUBSISTENCE,Wales and West 2 (Wales),REDFERN TRAVEL LTD,1011705550,53.88,Travel and Subsistence Week 11,BD1 5HQ,PROGRAMME
FOOD STANDARDS AGENCY - Westminster,FOOD STANDARDS AGENCY - Westminster,2018-03-13,EXP - PURCHASE OF GOODS/SERVICES - TAXI SERVICES,Regulating our Future,REDFERN TRAVEL LTD,1011705351,53.82,Travel and Subsistence Week 8,BD1 5HQ,ADMIN
FOOD STANDARDS AGENCY - Westminster,FOOD STANDARDS AGENCY - Westminster,2018-03-13,EXP - PURCHASE OF GOODS/SERVICES - SUBSISTENCE,Additives,REDFERN TRAVEL LTD,1011705351,53.05,Travel and Subsistence Week 8,BD1 5HQ,ADMIN
FOOD STANDARDS AGENCY - Westminster,FOOD STANDARDS AGENCY - Westminster,2018-03-15,EXP - PURCHASE OF GOODS/SERVICES - OTHER TRAVEL,Operational Delivery,REDFERN TRAVEL LTD,1011705401,52.25,Travel and Subsistence Week 9,BD1 5HQ,PROGRAMME
FOOD STANDARDS AGENCY - Westminster,FOOD STANDARDS AGENCY - Westminster,2018-03-20,EXP - PURCHASE OF GOODS/SERVICES - SUBSISTENCE,Wales and West 1 (England),REDFERN TRAVEL LTD,1011705444,51.85,Travel and Subsistence Week 10,BD1 5HQ,PROGRAMME
FOOD STANDARDS AGENCY - Westminster,FOOD STANDARDS AGENCY - Westminster,2018-03-20,EXP - PURCHASE OF GOODS/SERVICES - RAIL TRAVEL,East 3,REDFERN TRAVEL LTD,1011705444,47.3,Travel and Subsistence Week 10,BD1 5HQ,PROGRAMME
FOOD STANDARDS AGENCY - Westminster,FOOD STANDARDS AGENCY - Westminster,2018-03-29,EXP - PURCHASE OF GOODS/SERVICES - RAIL TRAVEL,Wales and West 2 (Wales),REDFERN TRAVEL LTD,1011705550,47.1,Travel and Subsistence Week 11,BD1 5HQ,PROGRAMME
FOOD STANDARDS AGENCY - Westminster,FOOD STANDARDS AGENCY - Westminster,2018-03-20,EXP - PURCHASE OF GOODS/SERVICES - RAIL TRAVEL,Imports & Exports Team (Admin),REDFERN TRAVEL LTD,1011705444,45.8,Travel and Subsistence Week 10,BD1 5HQ,ADMIN
FOOD STANDARDS AGENCY - Westminster,FOOD STANDARDS AGENCY - Westminster,2018-03-20,EXP - PURCHASE OF GOODS/SERVICES - SUBSISTENCE,Food Crime Unit - Admin,REDFERN TRAVEL LTD,1011705444,45.6,Travel and Subsistence Week 10,BD1 5HQ,ADMIN
FOOD STANDARDS AGENCY - Westminster,FOOD STANDARDS AGENCY - Westminster,2018-03-20,EXP - PURCHASE OF GOODS/SERVICES - SUBSISTENCE,North 2,REDFERN TRAVEL LTD,1011705444,45.6,Travel and Subsistence Week 10,BD1 5HQ,PROGRAMME
FOOD STANDARDS AGENCY - Westminster,FOOD STANDARDS AGENCY - Westminster,2018-03-20,EXP - PURCHASE OF GOODS/SERVICES - SUBSISTENCE,Wales and West 1 (Wales),REDFERN TRAVEL LTD,1011705444,45.6,Travel and Subsistence Week 10,BD1 5HQ,PROGRAMME
FOOD STANDARDS AGENCY - Westminster,FOOD STANDARDS AGENCY - Westminster,2018-03-13,EXP - PURCHASE OF GOODS/SERVICES - RAIL TRAVEL,East 2,REDFERN TRAVEL LTD,1011705351,45.4,Travel and Subsistence Week 8,BD1 5HQ,PROGRAMME
FOOD STANDARDS AGENCY - Westminster,FOOD STANDARDS AGENCY - Westminster,2018-03-15,EXP - PURCHASE OF GOODS/SERVICES - SUBSISTENCE,Wales and West 2 (England),REDFERN TRAVEL LTD,1011705401,45.27,Travel and Subsistence Week 9,BD1 5HQ,PROGRAMME
FOOD STANDARDS AGENCY - Westminster,FOOD STANDARDS AGENCY - Westminster,2018-03-15,EXP - PURCHASE OF GOODS/SERVICES - OTHER TRAVEL,Operations Assurance ,REDFERN TRAVEL LTD,1011705401,44.95,Travel and Subsistence Week 9,BD1 5HQ,PROGRAMME
FOOD STANDARDS AGENCY - Westminster,FOOD STANDARDS AGENCY - Westminster,2018-03-29,EXP - PURCHASE OF GOODS/SERVICES - AIR TRAVEL,Chief Scientist,REDFERN TRAVEL LTD,1011705550,44.14,Travel and Subsistence Week 11,BD1 5HQ,ADMIN
FOOD STANDARDS AGENCY - Westminster,FOOD STANDARDS AGENCY - Westminster,2018-03-15,EXP - PURCHASE OF GOODS/SERVICES - RAIL TRAVEL,Chief Scientist,REDFERN TRAVEL LTD,1011705401,43.5,Travel and Subsistence Week 9,BD1 5HQ,ADMIN
FOOD STANDARDS AGENCY - Westminster,FOOD STANDARDS AGENCY - Westminster,2018-03-20,EXP - PURCHASE OF GOODS/SERVICES - RAIL TRAVEL,Resilience - Admin,REDFERN TRAVEL LTD,1011705444,43,Travel and Subsistence Week 10,BD1 5HQ,ADMIN
FOOD STANDARDS AGENCY - Westminster,FOOD STANDARDS AGENCY - Westminster,2018-03-13,EXP - PURCHASE OF GOODS/SERVICES - OTHER TRAVEL,NI Food Safety,REDFERN TRAVEL LTD,1011705351,42.3,Travel and Subsistence Week 8,BD1 5HQ,ADMIN
FOOD STANDARDS AGENCY - Westminster,FOOD STANDARDS AGENCY - Westminster,2018-03-15,EXP - PURCHASE OF GOODS/SERVICES - OTHER TRAVEL,Regulatory Delivery ,REDFERN TRAVEL LTD,1011705401,37.99,Travel and Subsistence Week 9,BD1 5HQ,ADMIN
FOOD STANDARDS AGENCY - Westminster,FOOD STANDARDS AGENCY - Westminster,2018-03-13,EXP - PURCHASE OF GOODS/SERVICES - SUBSISTENCE,Wales and West 2 (Wales),REDFERN TRAVEL LTD,1011705351,36.3,Travel and Subsistence Week 8,BD1 5HQ,PROGRAMME
FOOD STANDARDS AGENCY - Westminster,FOOD STANDARDS AGENCY - Westminster,2018-03-20,EXP - PURCHASE OF GOODS/SERVICES - RAIL TRAVEL,Analysis & Research Branch,REDFERN TRAVEL LTD,1011705444,34,Travel and Subsistence Week 10,BD1 5HQ,ADMIN
FOOD STANDARDS AGENCY - Westminster,FOOD STANDARDS AGENCY - Westminster,2018-03-29,EXP - PURCHASE OF GOODS/SERVICES - RAIL TRAVEL,Resilience - Admin,REDFERN TRAVEL LTD,1011705550,33.6,Travel and Subsistence Week 11,BD1 5HQ,ADMIN
FOOD STANDARDS AGENCY - Westminster,FOOD STANDARDS AGENCY - Westminster,2018-03-29,EXP - PURCHASE OF GOODS/SERVICES - OTHER TRAVEL,EU Exit,REDFERN TRAVEL LTD,1011705550,32.99,Travel and Subsistence Week 11,BD1 5HQ,ADMIN
FOOD STANDARDS AGENCY - Westminster,FOOD STANDARDS AGENCY - Westminster,2018-03-13,EXP - PURCHASE OF GOODS/SERVICES - RAIL TRAVEL,IT Service Delivery,REDFERN TRAVEL LTD,1011705351,32.3,Travel and Subsistence Week 8,BD1 5HQ,ADMIN
FOOD STANDARDS AGENCY - Westminster,FOOD STANDARDS AGENCY - Westminster,2018-03-13,EXP - PURCHASE OF GOODS/SERVICES - RAIL TRAVEL,North 1,REDFERN TRAVEL LTD,1011705351,31,Travel and Subsistence Week 8,BD1 5HQ,PROGRAMME
FOOD STANDARDS AGENCY - Westminster,FOOD STANDARDS AGENCY - Westminster,2018-03-15,EXP - PURCHASE OF GOODS/SERVICES - RAIL TRAVEL,Food Incidents & Resilience - Prog,REDFERN TRAVEL LTD,1011705401,30.6,Travel and Subsistence Week 9,BD1 5HQ,PROGRAMME
FOOD STANDARDS AGENCY - Westminster,FOOD STANDARDS AGENCY - Westminster,2018-03-29,EXP - PURCHASE OF GOODS/SERVICES - RAIL TRAVEL,North 2,REDFERN TRAVEL LTD,1011705550,30.5,Travel and Subsistence Week 11,BD1 5HQ,PROGRAMME
FOOD STANDARDS AGENCY - Westminster,FOOD STANDARDS AGENCY - Westminster,2018-03-29,EXP - PURCHASE OF GOODS/SERVICES - RAIL TRAVEL,Regulatory & International,REDFERN TRAVEL LTD,1011705550,30,Travel and Subsistence Week 11,BD1 5HQ,ADMIN
FOOD STANDARDS AGENCY - Westminster,FOOD STANDARDS AGENCY - Westminster,2018-03-29,EXP - PURCHASE OF GOODS/SERVICES - RAIL TRAVEL,Contaminants Policy & Strategy Unit,REDFERN TRAVEL LTD,1011705550,29.2,Travel and Subsistence Week 11,BD1 5HQ,ADMIN
FOOD STANDARDS AGENCY - Westminster,FOOD STANDARDS AGENCY - Westminster,2018-03-15,EXP - PURCHASE OF GOODS/SERVICES - OTHER TRAVEL,Analysis & Research Branch,REDFERN TRAVEL LTD,1011705401,27.75,Travel and Subsistence Week 9,BD1 5HQ,ADMIN
FOOD STANDARDS AGENCY - Westminster,FOOD STANDARDS AGENCY - Westminster,2018-03-15,EXP - PURCHASE OF GOODS/SERVICES - RAIL TRAVEL,Analysis & Research Branch,REDFERN TRAVEL LTD,1011705401,27.5,Travel and Subsistence Week 9,BD1 5HQ,ADMIN
FOOD STANDARDS AGENCY - Westminster,FOOD STANDARDS AGENCY - Westminster,2018-03-20,EXP - PURCHASE OF GOODS/SERVICES - RAIL TRAVEL,North 4,REDFERN TRAVEL LTD,1011705444,25.2,Travel and Subsistence Week 10,BD1 5HQ,PROGRAMME
FOOD STANDARDS AGENCY - Westminster,FOOD STANDARDS AGENCY - Westminster,2018-03-20,EXP - PURCHASE OF GOODS/SERVICES - RAIL TRAVEL,Corporate Support Unit,REDFERN TRAVEL LTD,1011705444,24.5,Travel and Subsistence Week 10,BD1 5HQ,ADMIN
FOOD STANDARDS AGENCY - Westminster,FOOD STANDARDS AGENCY - Westminster,2018-03-13,EXP - PURCHASE OF GOODS/SERVICES - RAIL TRAVEL,East 1,REDFERN TRAVEL LTD,1011705351,22.1,Travel and Subsistence Week 8,BD1 5HQ,PROGRAMME
FOOD STANDARDS AGENCY - Westminster,FOOD STANDARDS AGENCY - Westminster,2018-03-29,EXP - PURCHASE OF GOODS/SERVICES - RAIL TRAVEL,East 4,REDFERN TRAVEL LTD,1011705550,21.5,Travel and Subsistence Week 11,BD1 5HQ,PROGRAMME
FOOD STANDARDS AGENCY - Westminster,FOOD STANDARDS AGENCY - Westminster,2018-03-15,EXP - PURCHASE OF GOODS/SERVICES - RAIL TRAVEL,East 1,REDFERN TRAVEL LTD,1011705401,19.6,Travel and Subsistence Week 9,BD1 5HQ,PROGRAMME
FOOD STANDARDS AGENCY - Westminster,FOOD STANDARDS AGENCY - Westminster,2018-03-13,EXP - PURCHASE OF GOODS/SERVICES - AIR TRAVEL,IT Information & Knowledge Management,REDFERN TRAVEL LTD,1011705351,19.34,Travel and Subsistence Week 8,BD1 5HQ,ADMIN
FOOD STANDARDS AGENCY - Westminster,FOOD STANDARDS AGENCY - Westminster,2018-03-13,EXP - PURCHASE OF GOODS/SERVICES - TAXI SERVICES,Operations Assurance ,REDFERN TRAVEL LTD,1011705351,19.34,Travel and Subsistence Week 8,BD1 5HQ,PROGRAMME
FOOD STANDARDS AGENCY - Westminster,FOOD STANDARDS AGENCY - Westminster,2018-03-15,EXP - PURCHASE OF GOODS/SERVICES - OTHER TRAVEL,NI Food Safety,REDFERN TRAVEL LTD,1011705401,16.15,Travel and Subsistence Week 9,BD1 5HQ,ADMIN
FOOD STANDARDS AGENCY - Westminster,FOOD STANDARDS AGENCY - Westminster,2018-03-20,EXP - PURCHASE OF GOODS/SERVICES - OTHER TRAVEL,IT Information & Knowledge Management,REDFERN TRAVEL LTD,1011705444,13.7,Travel and Subsistence Week 10,BD1 5HQ,ADMIN
FOOD STANDARDS AGENCY - Westminster,FOOD STANDARDS AGENCY - Westminster,2018-03-29,EXP - PURCHASE OF GOODS/SERVICES - TAXI SERVICES,Planning and Performance,REDFERN TRAVEL LTD,1011705550,13.45,Travel and Subsistence Week 11,BD1 5HQ,ADMIN
FOOD STANDARDS AGENCY - Westminster,FOOD STANDARDS AGENCY - Westminster,2018-03-13,EXP - PURCHASE OF GOODS/SERVICES - TAXI SERVICES,Corporate Support Unit,REDFERN TRAVEL LTD,1011705351,13.45,Travel and Subsistence Week 8,BD1 5HQ,ADMIN
FOOD STANDARDS AGENCY - Westminster,FOOD STANDARDS AGENCY - Westminster,2018-03-29,EXP - PURCHASE OF GOODS/SERVICES - RAIL TRAVEL,Contaminants HoD,REDFERN TRAVEL LTD,1011705550,10.8,Travel and Subsistence Week 11,BD1 5HQ,ADMIN
FOOD STANDARDS AGENCY - Westminster,FOOD STANDARDS AGENCY - Westminster,2018-03-13,EXP - PURCHASE OF GOODS/SERVICES - RAIL TRAVEL,Microbiological Food Safety Branch,REDFERN TRAVEL LTD,1011705351,10.6,Travel and Subsistence Week 8,BD1 5HQ,ADMIN
FOOD STANDARDS AGENCY - Westminster,FOOD STANDARDS AGENCY - Westminster,2018-03-13,EXP - PURCHASE OF GOODS/SERVICES - SUBSISTENCE,Legal Branch A & Investigations,REDFERN TRAVEL LTD,1011705351,2.33,Travel and Subsistence Week 8,BD1 5HQ,ADMIN
FOOD STANDARDS AGENCY - Westminster,FOOD STANDARDS AGENCY - Westminster,2018-03-20,EXP - PURCHASE OF GOODS/SERVICES - FOREIGN SUBSISTENCE,Contaminants Policy & Strategy Unit,REDFERN TRAVEL LTD,1011705444,1.8,Travel and Subsistence Week 10,BD1 5HQ,ADMIN
FOOD STANDARDS AGENCY - Westminster,FOOD STANDARDS AGENCY - Westminster,2018-03-29,EXP - PURCHASE OF GOODS/SERVICES - SUBSISTENCE,Contaminants Policy & Strategy Unit,REDFERN TRAVEL LTD,1011705550,1.2,Travel and Subsistence Week 11,BD1 5HQ,ADMIN
FOOD STANDARDS AGENCY - Westminster,FOOD STANDARDS AGENCY - Westminster,2018-03-20,EXP - PURCHASE OF GOODS/SERVICES - SUBSISTENCE,Finance Director & Branch,REDFERN TRAVEL LTD,1011705444,1.2,Travel and Subsistence Week 10,BD1 5HQ,ADMIN
FOOD STANDARDS AGENCY - Westminster,FOOD STANDARDS AGENCY - Westminster,2018-03-15,EXP - PURCHASE OF GOODS/SERVICES - FOREIGN SUBSISTENCE,Additives,REDFERN TRAVEL LTD,1011705401,1.2,Travel and Subsistence Week 9,BD1 5HQ,ADMIN
FOOD STANDARDS AGENCY - Westminster,FOOD STANDARDS AGENCY - Westminster,2018-03-13,EXP - PURCHASE OF GOODS/SERVICES - FOREIGN SUBSISTENCE,Scientific Methods & Laboratory Policy,REDFERN TRAVEL LTD,1011705351,1.2,Travel and Subsistence Week 8,BD1 5HQ,ADMIN
FOOD STANDARDS AGENCY - Westminster,FOOD STANDARDS AGENCY - Westminster,2018-03-29,EXP - PURCHASE OF GOODS/SERVICES - FOREIGN SUBSISTENCE,Contaminants HoD,REDFERN TRAVEL LTD,1011705550,0.6,Travel and Subsistence Week 11,BD1 5HQ,ADMIN
FOOD STANDARDS AGENCY - Westminster,FOOD STANDARDS AGENCY - Westminster,2018-03-29,EXP - PURCHASE OF GOODS/SERVICES - SUBSISTENCE,Corporate Support Unit,REDFERN TRAVEL LTD,1011705550,0.6,Travel and Subsistence Week 11,BD1 5HQ,ADMIN
FOOD STANDARDS AGENCY - Westminster,FOOD STANDARDS AGENCY - Westminster,2018-03-20,EXP - PURCHASE OF GOODS/SERVICES - FOREIGN SUBSISTENCE,Analysis & Research Branch,REDFERN TRAVEL LTD,1011705444,0.6,Travel and Subsistence Week 10,BD1 5HQ,ADMIN
FOOD STANDARDS AGENCY - Westminster,FOOD STANDARDS AGENCY - Westminster,2018-03-20,EXP - PURCHASE OF GOODS/SERVICES - FOREIGN SUBSISTENCE,Food Production Branch,REDFERN TRAVEL LTD,1011705444,0.6,Travel and Subsistence Week 10,BD1 5HQ,ADMIN
FOOD STANDARDS AGENCY - Westminster,FOOD STANDARDS AGENCY - Westminster,2018-03-20,EXP - PURCHASE OF GOODS/SERVICES - SUBSISTENCE,Additives,REDFERN TRAVEL LTD,1011705444,0.6,Travel and Subsistence Week 10,BD1 5HQ,ADMIN
FOOD STANDARDS AGENCY - Westminster,FOOD STANDARDS AGENCY - Westminster,2018-03-20,EXP - PURCHASE OF GOODS/SERVICES - SUBSISTENCE,Regulatory & International,REDFERN TRAVEL LTD,1011705444,0.6,Travel and Subsistence Week 10,BD1 5HQ,ADMIN
FOOD STANDARDS AGENCY - Westminster,FOOD STANDARDS AGENCY - Westminster,2018-03-20,EXP - PURCHASE OF GOODS/SERVICES - FOREIGN SUBSISTENCE,IT Information & Knowledge Management,REDFERN TRAVEL LTD,1011705444,0.6,Travel and Subsistence Week 10,BD1 5HQ,ADMIN
FOOD STANDARDS AGENCY - Westminster,FOOD STANDARDS AGENCY - Westminster,2018-03-15,EXP - PURCHASE OF GOODS/SERVICES - SUBSISTENCE,Chief Scientist,REDFERN TRAVEL LTD,1011705401,0.6,Travel and Subsistence Week 9,BD1 5HQ,ADMIN
FOOD STANDARDS AGENCY - Westminster,FOOD STANDARDS AGENCY - Westminster,2018-03-15,EXP - PURCHASE OF GOODS/SERVICES - FOREIGN SUBSISTENCE,Scientific Methods & Laboratory Policy,REDFERN TRAVEL LTD,1011705401,0.6,Travel and Subsistence Week 9,BD1 5HQ,ADMIN
FOOD STANDARDS AGENCY - Westminster,FOOD STANDARDS AGENCY - Westminster,2018-03-15,EXP - PURCHASE OF GOODS/SERVICES - FOREIGN SUBSISTENCE,Regulatory Delivery ,REDFERN TRAVEL LTD,1011705401,0.6,Travel and Subsistence Week 9,BD1 5HQ,ADMIN
FOOD STANDARDS AGENCY - Westminster,FOOD STANDARDS AGENCY - Westminster,2018-03-15,EXP - PURCHASE OF GOODS/SERVICES - SUBSISTENCE,Food Crime Unit - Admin,REDFERN TRAVEL LTD,1011705401,0.6,Travel and Subsistence Week 9,BD1 5HQ,ADMIN
FOOD STANDARDS AGENCY - Westminster,FOOD STANDARDS AGENCY - Westminster,2018-03-15,EXP - PURCHASE OF GOODS/SERVICES - FOREIGN SUBSISTENCE,Contaminants Policy & Strategy Unit,REDFERN TRAVEL LTD,1011705401,0.6,Travel and Subsistence Week 9,BD1 5HQ,ADMIN
FOOD STANDARDS AGENCY - Westminster,FOOD STANDARDS AGENCY - Westminster,2018-03-15,EXP - PURCHASE OF GOODS/SERVICES - FOREIGN SUBSISTENCE,EU Regulatory Reform Branch,REDFERN TRAVEL LTD,1011705401,0.6,Travel and Subsistence Week 9,BD1 5HQ,ADMIN
FOOD STANDARDS AGENCY - Westminster,FOOD STANDARDS AGENCY - Westminster,2018-03-15,EXP - PURCHASE OF GOODS/SERVICES - SUBSISTENCE,Regulatory & International,REDFERN TRAVEL LTD,1011705401,0.6,Travel and Subsistence Week 9,BD1 5HQ,ADMIN
FOOD STANDARDS AGENCY - Westminster,FOOD STANDARDS AGENCY - Westminster,2018-03-15,EXP - PURCHASE OF GOODS/SERVICES - FOREIGN SUBSISTENCE,Regulatory & International,REDFERN TRAVEL LTD,1011705401,0.6,Travel and Subsistence Week 9,BD1 5HQ,ADMIN
FOOD STANDARDS AGENCY - Westminster,FOOD STANDARDS AGENCY - Westminster,2018-03-15,EXP - PURCHASE OF GOODS/SERVICES - FOREIGN SUBSISTENCE,Internal Audit,REDFERN TRAVEL LTD,1011705401,0.6,Travel and Subsistence Week 9,BD1 5HQ,ADMIN
FOOD STANDARDS AGENCY - Westminster,FOOD STANDARDS AGENCY - Westminster,2018-03-15,EXP - PURCHASE OF GOODS/SERVICES - FOREIGN SUBSISTENCE,Food Incidents & Resilience - Prog,REDFERN TRAVEL LTD,1011705401,0.6,Travel and Subsistence Week 9,BD1 5HQ,PROGRAMME
FOOD STANDARDS AGENCY - Westminster,FOOD STANDARDS AGENCY - Westminster,2018-03-13,EXP - PURCHASE OF GOODS/SERVICES - SUBSISTENCE,Programme and project delivery,REDFERN TRAVEL LTD,1011705351,0.6,Travel and Subsistence Week 8,BD1 5HQ,ADMIN
FOOD STANDARDS AGENCY - Westminster,FOOD STANDARDS AGENCY - Westminster,2018-03-13,EXP - PURCHASE OF GOODS/SERVICES - FOREIGN SUBSISTENCE,Contaminants Policy & Strategy Unit,REDFERN TRAVEL LTD,1011705351,0.6,Travel and Subsistence Week 8,BD1 5HQ,ADMIN
FOOD STANDARDS AGENCY - Westminster,FOOD STANDARDS AGENCY - Westminster,2018-03-13,EXP - PURCHASE OF GOODS/SERVICES - FOREIGN SUBSISTENCE,Allergens,REDFERN TRAVEL LTD,1011705351,0.6,Travel and Subsistence Week 8,BD1 5HQ,ADMIN
FOOD STANDARDS AGENCY - Westminster,FOOD STANDARDS AGENCY - Westminster,2018-03-13,EXP - PURCHASE OF GOODS/SERVICES - SUBSISTENCE,Corporate Support Unit,REDFERN TRAVEL LTD,1011705351,0.6,Travel and Subsistence Week 8,BD1 5HQ,ADMIN
FOOD STANDARDS AGENCY - Westminster,FOOD STANDARDS AGENCY - Westminster,2018-03-15,EXP - PURCHASE OF GOODS/SERVICES - RAIL TRAVEL,Food Production Branch,REDFERN TRAVEL LTD,1011705401,-5.3,Travel and Subsistence Week 9,BD1 5HQ,ADMIN
FOOD STANDARDS AGENCY - Westminster,FOOD STANDARDS AGENCY - Westminster,2018-03-13,EXP - PURCHASE OF GOODS/SERVICES - RAIL TRAVEL,Food Production Branch,REDFERN TRAVEL LTD,1011705351,-16.3,Travel and Subsistence Week 8,BD1 5HQ,ADMIN
FOOD STANDARDS AGENCY - Westminster,FOOD STANDARDS AGENCY - Westminster,2018-03-20,EXP - PURCHASE OF GOODS/SERVICES - RAIL TRAVEL,Food Production Branch,REDFERN TRAVEL LTD,1011705444,-16.6,Travel and Subsistence Week 10,BD1 5HQ,ADMIN
FOOD STANDARDS AGENCY - Westminster,FOOD STANDARDS AGENCY - Westminster,2018-03-29,EXP - PURCHASE OF GOODS/SERVICES - RAIL TRAVEL,Procurement,REDFERN TRAVEL LTD,1011705550,-36.2,Travel and Subsistence Week 11,BD1 5HQ,ADMIN
FOOD STANDARDS AGENCY - Westminster,FOOD STANDARDS AGENCY - Westminster,2018-03-13,EXP - PURCHASE OF GOODS/SERVICES - SUBSISTENCE,Procurement,REDFERN TRAVEL LTD,1011705351,-42.93,Travel and Subsistence Week 8,BD1 5HQ,ADMIN
FOOD STANDARDS AGENCY - Westminster,FOOD STANDARDS AGENCY - Westminster,2018-03-13,EXP - PURCHASE OF GOODS/SERVICES - RAIL TRAVEL,IT Information & Knowledge Management,REDFERN TRAVEL LTD,1011705351,-48.78,Travel and Subsistence Week 8,BD1 5HQ,ADMIN
FOOD STANDARDS AGENCY - Westminster,FOOD STANDARDS AGENCY - Westminster,2018-03-20,EXP - PURCHASE OF GOODS/SERVICES - SUBSISTENCE,Contaminants HoD,REDFERN TRAVEL LTD,1011705444,-53.28,Travel and Subsistence Week 10,BD1 5HQ,ADMIN
FOOD STANDARDS AGENCY - Westminster,FOOD STANDARDS AGENCY - Westminster,2018-03-29,EXP - PURCHASE OF GOODS/SERVICES - RAIL TRAVEL,Chief Executive & Private Office,REDFERN TRAVEL LTD,1011705550,-86.5,Travel and Subsistence Week 11,BD1 5HQ,ADMIN
FOOD STANDARDS AGENCY - Westminster,FOOD STANDARDS AGENCY - Westminster,2018-03-13,EXP - PURCHASE OF GOODS/SERVICES - SUBSISTENCE,Food Incidents & Resilience - Prog,REDFERN TRAVEL LTD,1011705351,-109.4,Travel and Subsistence Week 8,BD1 5HQ,PROGRAMME
FOOD STANDARDS AGENCY - Westminster,FOOD STANDARDS AGENCY - Westminster,2018-03-29,EXP - PURCHASE OF GOODS/SERVICES - SUBSISTENCE,Wales and West 1 (Wales),REDFERN TRAVEL LTD,1011705550,-141.75,Travel and Subsistence Week 11,BD1 5HQ,PROGRAMME
FOOD STANDARDS AGENCY - Westminster,FOOD STANDARDS AGENCY - Westminster,2018-03-15,EXP - PURCHASE OF GOODS/SERVICES - RAIL TRAVEL,Corporate Support Unit,REDFERN TRAVEL LTD,1011705401,-155.3,Travel and Subsistence Week 9,BD1 5HQ,ADMIN
FOOD STANDARDS AGENCY - Westminster,FOOD STANDARDS AGENCY - Westminster,2018-03-29,EXP - PURCHASE OF GOODS/SERVICES - SUBSISTENCE,Chief Executive & Private Office,REDFERN TRAVEL LTD,1011705550,-223.15,Travel and Subsistence Week 11,BD1 5HQ,ADMIN
